Cogmind - Beta 16.1 @@@ ROGUE MODE // 2026.04.12 @ 22:48:47 Player: Wulphy Result: Assimilated 0b10! Performance ------------- Evolutions (9) 4500 Regions Visited (27) 5400 Robots Destroyed (469) 2345 Value Destroyed (31405) 31405 Prototype IDs (110) 2200 Alien Tech Used (4) 800 Bonus (29117) 29117 TOTAL SCORE: 75767 Bonus ------- High Alert Combat Kills 1681 Follower Combat Kills 7404 Hunted by Unchained 1000 Destroyed Unchained 1000 Entered Garrisons 1800 Used RIF Installer 5500 Aligned with FarCom 300 Destroyed MAIN.C Guards 500 Met MAIN.C 5000 Used 0b10 Conduit 2000 Win 3000 Friendly Fire -68 Cogmind --------- Core Integrity 1513/1600 Matter 270/300 Energy 1344/1350 System Corruption 0% +Membrane Temperature Cool (0) Movement Rolling (173) Ox5 Location 0b10 Command Parts ------- > --- POWER (4) -------- Quantum Reactor Singularity Reactor > --- PROPULSION (4) --- Armored Huge Wheel Centrium Wheel Centrium Wheel (fused) > --- UTILITY (14) ----- Advanced Cooling System Cargo Storage Unit Spectral Analyzer Advanced Targeting Computer Centrium Heavy Armor Plating Centrium Heavy Armor Plating Graphene Brace Experimental EM Shield AEGIS Remote Shield Relay Coupler [C] (32) Relay Coupler [Proto] (7) > --- WEAPON (3) ------- Cooled Nova Cannon Improved Potential Cannon > --- INVENTORY (30) --- Armored Huge Wheel Advanced Coolant Injector Experimental Coolant Injector Huge Storage Unit Advanced Energy Well (500) Advanced Energy Well (500) Advanced Matter Compressor (400) Precision Energy Filter Experimental Weapon Cycler Advanced Focal Shield Advanced Point Defense System Relay Coupler [C] (49) Relay Coupler [Proto] (10) Long-range Tractor Beam Subatomic Replicator Enhanced Nova Cannon YOLO Cannon Omega Cannon Enhanced Gamma Bomb Array Hellfire Missile Launcher Advanced Remote Datajack Advanced Remote Datajack V4-D3R's Forcegen V4-D3R's Sabre Peak State ------------ > --- POWER ------------ Quantum Reactor Singularity Reactor > --- PROPULSION ------- Armored Huge Wheel Centrium Wheel Centrium Wheel > --- UTILITY ---------- Cargo Storage Unit Spectral Analyzer Advanced Targeting Computer Experimental Weapon Cycler Centrium Heavy Armor Plating Centrium Heavy Armor Plating Graphene Brace Experimental EM Shield AEGIS Remote Shield Relay Coupler [C] Relay Coupler [Proto] > --- WEAPON ----------- Omega Cannon V4-D3R's Forcegen > --- INVENTORY -------- Armored Huge Wheel Advanced Cooling System Advanced Coolant Injector Experimental Coolant Injector Huge Storage Unit Advanced Energy Well Advanced Energy Well Advanced Matter Compressor Precision Energy Filter Advanced Focal Shield Advanced Point Defense System Relay Coupler [C] Relay Coupler [Proto] Long-range Tractor Beam Subatomic Replicator Enhanced Nova Cannon YOLO Cannon Cooled Nova Cannon Improved Potential Cannon Enhanced Gamma Bomb Array Hellfire Missile Launcher Advanced Remote Datajack Advanced Remote Datajack V4-D3R's Sabre [Rating: 226] Favorites ----------- Power Heavy Antimatter Reactor Engine Hybrid Deuterium Engine Power Core Enhanced Nuclear Core Reactor Heavy Antimatter Reactor Propulsion Centrium Wheel Treads Light Treads Leg Improved Titanium Leg Wheel Centrium Wheel Utility Cargo Storage Unit Device Advanced Cooling System Storage Cargo Storage Unit Processor Advanced Targeting Computer Hackware Relay Coupler [Sentry] Protection Advanced Powered Armor Weapon Advanced Remote Datajack Energy Gun Cooled Pulse Rifle Energy Cannon Enhanced Nova Cannon Ballistic Gun Light Assault Rifle Ballistic Cannon Enhanced Gauss Cannon Launcher Mini Smartbomb Launcher Special Weapon Advanced Remote Datajack Impact Weapon Heavy Mace Slashing Weapon V4-D3R's Sabre Special Melee Weapon Improved Datajack Build | -11 -10 -10 -10 -9 -8 -8 -8 -8 -7 -7 -6 -6 -5 -5 -5 -5 -4 -4 -3 -3 -3 -3 -2 -2 -2 -1 -1 ------- Run | Yrd Mat Min Exi Min Mat Gar Mat Gar Fac Gar Fac Gar Fac Gar Fac Gar Fac Gar Res Qua Sec Gar Res Tes Gar Acc Com Slots Evolved 18 | . . . . . 4 . . . 2 . 2 . 2 . . . 2 . 2 . . . 2 . . 2 . Power 3 | . . . . . . . . . . . . . 1 . . . . . 1 . . . . . . 1 . Propulsion 2 | . . . . . 1 . . . . . . . . . . . 1 . . . . . . . . . . Utility 12 | . . . . . 3 . . . 1 . 2 . 1 . . . 1 . 1 . . . 2 . . 1 . Weapon 1 | . . . . . . . . . 1 . . . . . . . . . . . . . . . . . . Parts Attached 378 | 7 9 1 4 1 32 12 7 19 29 22 23 16 10 14 4 12 21 11 11 7 7 23 16 10 15 26 9 Power 37 | 1 2 1 . . 3 2 1 2 1 2 1 1 2 . . 1 3 . . . 1 3 4 . . 6 . Engine 13 | 1 2 1 . . 2 . 1 2 . . 1 . 1 . . 1 . . . . . 1 . . . . . Core 5 | . . . . . 1 2 . . 1 1 . . . . . . . . . . . . . . . . . Reactor 19 | . . . . . . . . . . 1 . 1 1 . . . 3 . . . 1 2 4 . . 6 . Propulsion 49 | 2 1 . 2 . 5 3 . 5 7 3 6 1 . 1 . 1 3 . . 1 2 3 . 1 1 . 1 Treads 10 | 2 1 . . . . 1 . 4 2 . . . . . . . . . . . . . . . . . . Leg 5 | . . . . . 4 . . . . 1 . . . . . . . . . . . . . . . . . Wheel 34 | . . . 2 . 1 2 . 1 5 2 6 1 . 1 . 1 3 . . 1 2 3 . 1 1 . 1 Hover . | . . . . . . . . . . . . . . . . . . . . . . . . . . . . Flight . | . . . . . . . . . . . . . . . . . . . . . . . . . . . . Utility 203 | 2 2 . 2 1 11 5 4 9 14 11 10 13 6 10 4 8 11 8 8 3 4 11 10 5 11 15 5 Device 66 | 1 . . 1 . 4 3 1 . 2 3 4 4 1 1 2 2 7 5 2 1 3 3 3 2 2 6 3 Storage 16 | 1 1 . 1 . . . . . 2 1 . 2 . 1 . 1 . . . . . . 1 2 . 3 . Processor 19 | . 1 . . . 4 . 3 . . 1 1 . 2 . . . 1 . 2 . . . 1 1 . 2 . Hackware 76 | . . . . . . 2 . 7 5 4 2 7 2 6 2 5 3 2 4 2 1 6 3 . 9 3 1 Protection 26 | . . . . 1 3 . . 2 5 2 3 . 1 2 . . . 1 . . . 2 2 . . 1 1 Artifact . | . . . . . . . . . . . . . . . . . . . . . . . . . . . . Weapon 89 | 2 4 . . . 13 2 2 3 7 6 6 1 2 3 . 2 4 3 3 3 . 6 2 4 3 5 3 Energy Gun 20 | 1 2 . . . 8 1 2 1 . 2 1 . . . . . . . . . . 2 . . . . . Energy Cannon 19 | . . . . . . . . . . 3 2 1 . . . 1 2 1 . 1 . 1 . 2 2 2 1 Ballistic Gun 3 | 1 . . . . . . . . 1 . . . . 1 . . . . . . . . . . . . . Ballistic Cannon 14 | . 2 . . . 1 . . . 2 . . . . 1 . 1 1 1 . . . 3 1 1 . . . Launcher 10 | . . . . . 3 . . . 1 1 . . 1 . . . . . 1 1 . . . . . . 2 Special Weapon 17 | . . . . . . . . 2 2 . 1 . 1 1 . . . 1 2 1 . . 1 1 1 3 . Impact Weapon 2 | . . . . . 1 . . . 1 . . . . . . . . . . . . . . . . . . Slashing Weapon 3 | . . . . . . . . . . . 2 . . . . . 1 . . . . . . . . . . Piercing Weapon . | . . . . . . . . . . . . . . . . . . . . . . . . . . . . Special Melee Weapon 1 | . . . . . . 1 . . . . . . . . . . . . . . . . . . . . . Unidentified Prototypes 26 | . . . 1 . 3 . 2 . . 8 . . . . . . . . . 1 1 . . 6 . 2 2 Corrupted Parts 1 | . . . . . . . . . . . . . . . . . 1 . . . . . . . . . . System Corruption 9 | . . . . . . . . . . . . . . . . . 9 . . . . . . . . . . Parts Lost 34 | . . . . 1 5 4 . 5 1 . 4 1 . . . . . . 1 1 7 2 . . 1 1 . Power 6 | . . . . . 1 . . 1 . . . . . . . . . . . . 2 1 . . . 1 . Propulsion 10 | . . . . . 1 2 . 2 . . 1 . . . . . . . . . 2 1 . . 1 . . Utility 9 | . . . . 1 1 1 . 1 . . 2 . . . . . . . 1 1 1 . . . . . . Weapon 9 | . . . . . 2 1 . 1 1 . 1 1 . . . . . . . . 2 . . . . . . Highest Loss Streak 4 | . . . . 1 4 4 . 4 1 . 3 1 . . . . . . 1 1 2 1 . . 1 1 . To Critical Strikes 1 | . . . . . . . . . . . . . . . . . . . . . 1 . . . . . . Average Backups 22 | 4 12 15 15 15 15 15 16 15 18 23 23 23 24 24 24 24 25 26 25 26 25 25 25 25 25 26 25 Power . | . 1 . . . . . . . . . 1 1 1 1 1 1 1 1 . . . . . . . . . Propulsion 2 | 3 4 6 5 5 4 3 2 1 2 4 3 2 2 2 2 2 2 2 2 2 . . 1 1 1 1 1 Utility 12 | . 1 3 4 3 2 4 7 7 7 9 10 14 15 16 16 16 16 16 17 15 13 14 12 12 14 16 15 Weapon 5 | . 4 5 4 7 8 7 6 5 6 7 7 4 4 4 3 4 5 5 5 5 5 5 6 7 7 7 7 Tool/Special . | . . . . . . . . . . . . . . . . . . . . . . . . . . . . Unused Backups 84 | . 5 . 1 . 8 7 . 3 1 3 5 3 3 5 . 7 5 1 1 5 3 6 3 1 1 1 6 Power 7 | . . . 1 . . . . 1 . . . . . 1 . . 2 . 1 . . 1 . . . . . Propulsion 13 | . 3 . . . 3 . . . . 1 3 . . . . . 2 . . . . 1 . . . . . Utility 43 | . . . . . 2 4 . 2 1 2 1 2 1 3 . 7 1 . . 3 2 4 2 . 1 1 4 Weapon 16 | . 2 . . . 3 3 . . . . 1 1 1 1 . . . 1 . 1 . . 1 1 . . . Tool/Special 5 | . . . . . . . . . . . . . 1 . . . . . . 1 1 . . . . . 2 Average Slot Usage (%) 87 | . 98 100 100 100 97 98 100 99 98 87 84 85 85 82 87 87 88 89 89 85 84 79 80 71 76 79 77 Engine 2 | . 13 14 14 14 2 . 4 8 1 . 2 4 2 . . 2 3 . . . . . 2 . . . . Core 1 | . . . . . 6 8 4 . 5 6 3 . . . . . . . . . . . . . . . . Reactor 5 | . . . . . . . . . . . . 1 6 11 11 8 6 10 13 14 9 12 8 4 4 7 8 Treads 2 | . 27 28 7 12 . 1 9 15 9 1 . . . . . . . . . . . . . . . . . Leg 1 | . . . . . 25 16 . . . . . . . . . . . . . . . . . . . . . Wheel 11 | . . . 20 15 . 8 18 11 12 16 13 13 11 11 11 10 14 15 14 14 17 13 13 13 12 12 12 Device 10 | . 11 14 14 . 9 15 9 . 1 3 7 13 19 8 12 12 9 10 12 11 16 13 12 7 15 12 12 Storage 6 | . 14 14 14 14 9 9 9 9 7 7 6 6 6 5 5 5 5 5 4 4 4 4 5 4 4 4 4 Processor 6 | . 2 . . . 17 18 26 18 9 7 6 5 . . . . 3 5 4 4 4 4 3 3 4 4 8 Hackware 13 | . . . . . . 1 . 16 19 13 17 13 12 20 16 15 20 15 18 18 11 11 16 22 14 19 14 Protection 5 | . . . . 13 6 . . 1 6 5 5 5 4 5 9 10 7 9 4 4 3 4 7 7 8 7 8 Energy Gun 3 | . 12 16 . . 14 16 18 15 12 5 1 . . . . . . . . . . . . . . . . Energy Cannon 4 | . . . . . . . . . . 5 6 15 11 4 5 5 4 5 4 4 7 . . . 6 7 7 Ballistic Cannon 3 | . 11 11 27 28 1 . . . 1 2 4 . . 4 5 5 3 4 4 . . 2 4 3 . . . Special Weapon 3 | . . . . . . . . 2 6 7 4 3 4 4 4 5 4 5 4 6 5 4 3 2 3 3 3 Peak Build Rating 226 | 7 8 9 15 15 47 47 42 44 52 64 68 78 96 99 98 102 124 136 152 163 167 164 182 200 200 203 226 Average Rating 104 | 5 7 8 10 14 43 43 40 40 50 55 63 74 87 91 96 99 114 131 147 154 155 154 166 187 190 199 203 On Entrance 89 | . 7 8 9 15 15 44 40 42 44 50 60 68 78 96 95 97 102 122 136 149 160 144 150 182 200 188 197 Avg Prop Armor Cover (%) 12 | . . . . 8 8 9 12 17 11 9 . . . . . . . . . . . . . . . . . Naked Turns . | . . . . . . . . . . . . . . . . . . . . . . . . . . . . Heaviest Build 309 | 14 31 31 52 54 64 59 58 60 117 186 200 211 229 232 238 237 232 253 271 259 256 292 277 303 280 301 309 Greatest Support 64 | 40 40 40 40 32 60 60 26 26 22 42 44 40 40 40 40 40 60 60 60 60 64 60 60 60 60 60 60 Greatest Overweight (x) 16 | . 9 . 1 3 3 2 2 4 5 16 4 5 5 5 5 5 4 4 4 4 4 8 4 5 6 5 9 Average Overweight (x) 3 | . . . . 2 . . 2 3 4 4 3 4 5 5 5 5 3 3 4 3 3 4 4 4 4 4 4 Largest Inventory Capacity 30 | 8 15 15 20 20 20 20 20 20 25 30 30 30 30 30 30 30 30 30 30 30 30 30 30 30 30 30 30 Average Capacity 27 | 7 14 15 18 20 20 20 20 20 23 28 30 30 30 30 30 30 30 30 30 30 30 30 30 30 30 30 30 Most Carried 30 | 7 15 15 20 20 20 20 20 20 25 30 30 30 30 30 30 30 30 30 30 30 30 30 30 30 30 30 30 Average Carried 26 | 5 12 14 15 19 19 19 20 19 22 28 29 29 29 29 29 29 29 29 28 29 29 29 29 29 29 29 29 Final Capacity 30 | 8 15 15 20 20 20 20 20 20 25 30 30 30 30 30 30 30 30 30 30 30 30 30 30 30 30 30 30 Final Carried 30 | 7 15 15 20 20 20 20 20 20 25 30 30 30 30 30 30 30 30 30 30 29 30 30 30 30 30 30 27 Class Distribution -------------------- 57% | Botlord-Tank 15% | Mutant 7% | Bothacker-Mutant 6% | Botlord-Gunner 4% | Bothacker-Gunner 4% | Botlord-Mutant Dominant Class ---------------- Mutant | -10/Materials Mutant | -10/Mines Mutant | -10/Exiles Mutant | -9/Mines Mutant | -8/Materials Bothacker-Mutant | -8/Garrison Bothacker-Mutant | -8/Materials Bothacker-Mutant | -8/Garrison Bothacker-Gunner | -7/Factory Bothacker-Gunner | -7/Garrison Botlord-Gunner | -6/Factory Botlord-Gunner | -6/Garrison Botlord-Tank | -5/Factory Botlord-Tank | -5/Garrison Botlord-Tank | -5/Factory Botlord-Tank | -5/Garrison Botlord-Tank | -4/Factory Botlord-Tank | -4/Garrison Botlord-Tank | -3/Research Botlord-Tank | -3/Quarantine Botlord-Tank | -3/Section 7 Botlord-Tank | -3/Garrison Botlord-Tank | -2/Research Botlord-Tank | -2/Testing Botlord-Tank | -2/Garrison Botlord-Tank | -1/Access Botlord-Tank | -1/Command Resources | -11 -10 -10 -10 -9 -8 -8 -8 -8 -7 -7 -6 -6 -5 -5 -5 -5 -4 -4 -3 -3 -3 -3 -2 -2 -2 -1 -1 ----------- Run | Yrd Mat Min Exi Min Mat Gar Mat Gar Fac Gar Fac Gar Fac Gar Fac Gar Fac Gar Res Qua Sec Gar Res Tes Gar Acc Com Matter Collected 19168 | 265 282 252 60 116 614 456 149 527 667 615 436 666 221 1094 223 569 1625 1321 683 506 1222 1552 1560 809 1210 710 758 Remotely 1781 | . . . . . . . . . . . . . . . . . . . . . . . 660 130 564 259 168 Salvage Created 24498 | 38 276 14 . 30 1641 704 300 691 502 1171 604 1631 617 702 182 524 2139 676 722 1170 1403 1032 1797 408 1096 1861 2567 Parts 1061 | 7 23 1 . . 95 35 14 26 33 41 21 52 17 34 10 12 95 29 41 52 58 39 58 24 38 95 111 Haulers Intercepted 5 | . 2 . . . 1 . 1 . . . . . . . . . . . . 1 . . . . . . . Recyclers Shooed 11 | . . . . . . . . . . . 3 . . . . . 2 . 1 . 1 . 2 . . 2 . Parts Field Recycled . | . . . . . . . . . . . . . . . . . . . . . . . . . . . . Retrieved Matter . | . . . . . . . . . . . . . . . . . . . . . . . . . . . . Parts Self-Destructed . | . . . . . . . . . . . . . . . . . . . . . . . . . . . . Prevented . | . . . . . . . . . . . . . . . . . . . . . . . . . . . . Parts Restored . | . . . . . . . . . . . . . . . . . . . . . . . . . . . . Kills | -11 -10 -10 -10 -9 -8 -8 -8 -8 -7 -7 -6 -6 -5 -5 -5 -5 -4 -4 -3 -3 -3 -3 -2 -2 -2 -1 -1 ------- Run | Yrd Mat Min Exi Min Mat Gar Mat Gar Fac Gar Fac Gar Fac Gar Fac Gar Fac Gar Res Qua Sec Gar Res Tes Gar Acc Com Combat Hostiles Destroyed 391 | . 12 . . 4 26 23 5 15 10 8 9 26 11 15 3 4 48 17 12 17 19 10 16 7 17 27 30 Melee 5 | . . . . . . . . . . . . . . . . . 3 . . 2 . . . . . . . Guns 61 | . 5 . . . 18 6 5 15 9 . . . . 1 . . 1 . . . . 1 . . . . . Cannons 165 | . 7 . . 4 . . . . 1 1 7 13 6 7 1 2 17 8 10 10 3 3 15 7 10 16 17 AOE 119 | . . . . . 8 15 . . . 6 1 3 4 7 2 2 27 7 1 4 10 5 1 . 5 6 5 Classes Destroyed 22 | 1 4 . . 1 8 1 . . 1 . . 1 . 1 . . . . . . 1 1 2 . . . . Worker 17 | . 1 1 . . . . . . 4 . 2 . . . . . 5 . 2 . . . 1 . . . 1 Builder 16 | . . . . . 5 . . . . . . . . . . . 4 . . . 2 . 2 1 . 2 . Tunneler 5 | 2 . . . . 1 . . . 1 . . . . . . . . . . . . . . . . 1 . Hauler 5 | . 2 . . . 1 . 1 . . . . . . . . . . . . 1 . . . . . . . Recycler 21 | . . . . . 1 . . . . . 1 . 1 . 1 . 5 . 1 1 1 . 6 1 . 2 . Operator 2 | . . . . . . . . . . . . . . . . . . . . . . . 1 . . . 1 Watcher 6 | . . . . . 2 . 1 . 1 . . 1 . . . . . . . . . . 1 . . . . Swarmer 89 | . 9 . . . . 8 2 . 2 3 . . 3 7 3 . 19 6 3 3 . 5 . . 6 8 2 Cutter 10 | . . . . . 2 . . 1 . . . 3 . 2 . 1 . . . . . . . . 1 . . Grunt 129 | . 3 . . . 15 13 3 7 2 4 4 14 4 2 . 3 13 9 1 6 11 1 6 . 2 1 5 Brawler 7 | . . . . . 1 1 . . . 1 1 . 1 . . . . . . . . . . . . . 2 Duelist 6 | . . . . . 1 . . . . . . 2 1 . . . 1 1 . . . . . . . . . Researcher 1 | . . . . . . . . . . . . . . . . . . . . . 1 . . . . . . Sentry 33 | . . . . . 6 . . 2 2 . . 2 1 3 . . 2 . 2 1 3 . 2 . 1 3 3 Specialist 1 | . . . . . . . . . . . . . . . . . . . . . . 1 . . . . . Hunter 30 | . . . . . . . . . 1 . 3 3 1 . . . 4 1 1 . 1 1 1 2 4 3 4 Programmer 78 | . . . . . . 1 . 5 3 . 1 1 . 1 . 1 8 . 5 8 3 3 8 5 2 11 12 Heavy 2 | . . . . . 1 . . . . . . . . . . . . . . . . . . . . 1 . Behemoth 4 | . . . . . . . . . . . . . . 1 . . . 1 . . . 1 . . 1 . . S7 Guard 1 | . . . . . . . . . . . . . . . . . . . . . 1 . . . . . . Combat Programmer 2 | . . . . . . . . . . . . . . . . . . . . . . . . . . . 2 Striker 2 | . . . . . . . . . . . . . . . . . . . . . . . 2 . . . . Executioner 1 | . . . . . . . . . . . . 1 . . . . . . . . . . . . . . . Assembled 4 | . . . . 4 . . . . . . . . . . . . . . . . . . . . . . . Best Kill Streak 12 | 2 4 1 . 2 12 4 2 3 4 5 3 3 5 4 2 1 10 4 3 5 9 4 8 3 5 7 6 Combat Bots Only 9 | . 3 . . 2 7 4 2 3 2 5 2 3 5 4 2 1 9 4 3 5 8 4 4 2 5 6 5 Max Kills in Single Turn 4 | 1 1 1 . 1 3 4 1 1 2 2 2 2 2 4 2 1 4 2 2 2 2 3 3 1 3 4 2 Gunslinging . | . . . . . . . . . . . . . . . . . . . . . . . . . . . . Exploded 4 | . . . . . 2 4 . . . 2 1 2 2 4 2 1 3 2 1 2 2 2 1 . 3 4 2 Melee 1 | . . . . . . . . . . . . . . . . . 1 . . 1 . . . . . . . Uniques/NPCs Destroyed 1 | . . . . . . . . . . . . . . . . . 1 . . . . . . . . . . V4-D3R (-4/Factory) Combat | -11 -10 -10 -10 -9 -8 -8 -8 -8 -7 -7 -6 -6 -5 -5 -5 -5 -4 -4 -3 -3 -3 -3 -2 -2 -2 -1 -1 -------- Run | Yrd Mat Min Exi Min Mat Gar Mat Gar Fac Gar Fac Gar Fac Gar Fac Gar Fac Gar Res Qua Sec Gar Res Tes Gar Acc Com Hostile Shots Fired 1948 | . 56 . . 14 79 59 11 52 147 12 91 85 18 59 4 21 148 54 41 81 87 71 155 127 76 139 261 Missed 593 | . 12 . . 5 26 15 4 18 62 5 30 29 6 18 . 6 47 15 18 15 30 19 48 25 17 40 83 Intercepted 5 | . . . . . . . . . . . . . . . . . . . . . . . 5 . . . . Deflected 14 | . . . . . . . . . . . . . . . . . 12 . . 2 . . . . . . . Hits 1355 | . 44 . . 9 53 44 7 34 85 7 61 56 12 41 4 15 101 39 23 66 57 52 107 102 59 99 178 Melee 11 | . . . . 3 5 . . . . . . 1 . . . . . . . . . . 1 . 1 . . Projectile 1344 | . 44 . . 6 48 44 7 34 85 7 61 55 12 41 4 15 101 39 23 66 57 52 106 102 58 99 178 AOE 17 | . . . . . 1 . . 1 . . . 1 . 3 . 2 . . . . 1 . 5 . 2 . 1 Critical Strikes 85 | . . . . . 4 1 . 2 . 1 3 3 1 1 1 1 3 4 1 10 2 4 9 11 3 7 13 Actively Blocked 28 | . . . . . . . . . . . . . . . . . . . . . 1 . 1 11 3 5 7 Part Disruptions 12 | . . . . . . . . . . . . . . . . . 1 . . 1 . 1 1 . 1 . 7 Damage Taken 17374 | . 376 . . 184 1331 741 111 603 809 157 996 846 119 684 77 238 1074 409 285 811 1659 584 1244 862 638 955 1581 Core 1556 | . 46 . . 46 296 128 . 86 137 11 53 19 6 75 8 6 100 61 33 60 81 29 118 9 61 21 66 Absorbed by Shields 8153 | . . . . . . . . 4 . . . 77 116 384 72 151 692 255 241 713 471 429 821 809 605 897 1416 Ignored by Resistances 5570 | . . . . . . . . . 120 3 8 94 37 . . . . . . . . 107 1225 614 194 1342 1826 Regen/Repaired (Parts) 1016 | . . . . . . . . . . . . 307 189 . 32 56 75 . 28 . . . . . . . 329 Core Remaining (%) 77 | 100 . . . 63 . . . 7 . 78 . 91 . . . 90 . 86 . . . 84 . . 81 . 94 Volleys Fired 1919 | 2 43 1 . 12 67 70 12 109 55 175 51 93 39 118 33 89 147 106 72 71 63 67 114 29 65 96 120 Largest 3 | 2 2 1 . 2 2 2 2 2 2 2 2 3 2 2 1 2 2 2 2 2 1 3 1 1 2 2 2 Hottest 252 | 70 100 50 . 60 138 99 40 40 84 84 162 252 162 137 90 167 167 156 178 178 120 243 80 100 240 170 200 Shots Fired 2466 | 4 86 1 . 24 112 92 24 141 76 178 64 129 48 144 34 92 199 138 88 77 62 83 115 59 85 150 161 Gun 609 | 4 47 1 . . 98 76 24 114 46 140 3 . . 13 . . 22 . . . . 21 . . . . . Cannon 1307 | . 39 . . 24 . . . . 9 22 45 109 31 83 16 71 115 105 55 63 39 32 73 55 58 131 132 Launcher 132 | . . . . . 14 16 . . 1 5 4 7 4 3 2 3 24 3 2 3 13 5 1 . 6 5 11 Special 418 | . . . . . . . . 27 20 11 12 13 13 45 16 18 38 30 31 11 10 25 41 4 21 14 18 Kinetic 409 | 2 50 . . 24 . . . . 9 7 10 . . 34 2 5 52 33 19 5 . 31 73 46 4 . 3 Thermal 1287 | 2 36 1 . . 62 76 24 114 46 140 24 15 11 60 14 66 83 72 36 56 4 22 . 9 54 131 129 Explosive 81 | . . . . . 4 8 . . 1 2 . 2 4 3 2 3 24 3 2 3 10 5 . . 2 2 1 Electromagnetic 271 | . . . . . 46 8 . . . 18 18 99 20 2 . . 2 . . 2 38 . 1 . 4 3 10 Robot Hit Streak 37 | 1 11 12 . 13 16 9 11 18 23 37 15 23 9 20 12 32 16 20 24 9 18 11 23 16 14 11 15 Robot Miss Streak 5 | 2 2 . . 4 5 2 1 4 2 2 4 2 4 2 1 2 3 4 2 5 2 2 4 3 3 5 2 Penetration Max 1 | . . . . . . . . . . . . . . . . . . . . . . . 1 . . . . Secondary Targets 5 | . . . . . 2 . 2 1 . . . . . . . . . . . . . . . . . . . Max Gunslinging Chain 1 | . . . . . 1 . 1 1 . . . . . . . . . . . . . . . . . . . Capacitor 85 | . . . . . . . . . . . . . . . . . . . . 45 39 1 . . . . . Autonomous 67 | . . . . . . . . . . . . . . 13 . . 23 . . . . 2 . 29 . . . Shots Hit Robots 1610 | 1 57 1 . 9 83 45 19 75 66 140 51 81 28 79 20 48 123 82 58 45 44 70 84 37 55 95 114 Core Hits 792 | 2 16 1 . 7 75 37 13 24 31 60 29 30 18 25 4 22 88 25 17 22 42 24 34 14 24 43 65 Critical Kills 12 | . . . . . . . . . . . . . 1 . . . 1 2 1 1 . 1 . . . 2 3 Critical Parts Destroyed 1 | . 1 . . . . . . . . . . . . . . . . . . . . . . . . . . Critical Strikes 63 | 1 4 . . . 3 1 . 4 1 5 1 2 2 2 . . 3 3 2 5 1 5 9 3 1 2 3 Burn 18 | 1 3 . . . 3 1 . 4 1 5 . . . . . . . . . . . . . . . . . Meltdown 12 | . . . . . . . . . . . . . 1 . . . 1 2 1 1 . 1 . . . 2 3 Destroy 1 | . 1 . . . . . . . . . . . . . . . . . . . . . . . . . . Blast 20 | . . . . . . . . . . . . . . 2 . . . 1 1 1 . 2 9 3 1 . . Corrupt 4 | . . . . . . . . . . . . 2 1 . . . . . . . 1 . . . . . . Sever 1 | . . . . . . . . . . . 1 . . . . . . . . . . . . . . . . Intensify 7 | . . . . . . . . . . . . . . . . . 2 . . 3 . 2 . . . . . Melee Attacks 79 | . . . . . 6 5 . 7 1 . 7 . . . . . 12 . . 8 . 31 . . 2 . . Impact 7 | . . . . . 6 . . . 1 . . . . . . . . . . . . . . . . . . Slashing 60 | . . . . . . . . . . . 7 . . . . . 12 . . 8 . 31 . . 2 . . Piercing . | . . . . . . . . . . . . . . . . . . . . . . . . . . . . Sneak Attacks 12 | . . . . . . . . . . . 3 . . . . . 6 . . 2 . 1 . . . . . Combat Hostiles . | . . . . . . . . . . . . . . . . . . . . . . . . . . . . Follow-up Attacks . | . . . . . . . . . . . . . . . . . . . . . . . . . . . . Damage Inflicted 67828 | 22 760 13 . 176 2773 2055 378 1148 1193 3177 1458 3083 1359 1990 462 1573 7473 2521 2014 2826 3097 6033 4138 2921 2832 6033 6320 Guns 8530 | 22 405 13 . . 1512 652 378 1148 807 2440 85 . . 341 . . 513 . . . . 214 . . . . . Cannons 33642 | . 355 . . 176 . . . . 247 122 1010 2455 619 1027 227 1110 2322 1893 1422 1517 1053 1043 3932 2618 1735 4250 4509 Explosions 20286 | . . . . . 1261 1403 . . 139 615 207 628 740 622 235 463 3545 628 592 810 2044 1383 206 303 868 1783 1811 Melee 5370 | . . . . . . . . . . . 156 . . . . . 1093 . . 499 . 3393 . . 229 . . Ramming . | . . . . . . . . . . . . . . . . . . . . . . . . . . . . Kinetic 13063 | 10 427 . . 176 . . . . 247 122 240 . . 711 36 136 1403 769 637 140 . 933 3932 2537 443 . 164 Thermal 25998 | 12 333 13 . . 1073 707 378 1148 807 2466 438 243 129 657 191 974 1391 1124 785 1334 105 324 . 308 1384 4548 5126 Explosive 14321 | . . . . . 386 1028 . . 139 253 . 179 740 622 235 463 3545 628 592 810 1460 1383 . . 509 1136 213 Electromagnetic 9076 | . . . . . 1314 320 . . . 336 624 2661 490 . . . 41 . . 43 1532 . 206 76 267 349 817 Impact . | . . . . . . . . . . . . . . . . . . . . . . . . . . . . Slashing 5370 | . . . . . . . . . . . 156 . . . . . 1093 . . 499 . 3393 . . 229 . . Piercing . | . . . . . . . . . . . . . . . . . . . . . . . . . . . . Highest Corruption 14 | . . . . . 4 5 6 6 2 2 2 1 . 1 1 2 10 2 . 10 14 14 5 5 5 . . Average Corruption 3 | . . . . . 4 4 5 6 1 2 1 1 . 1 1 1 1 2 . 7 11 14 2 5 5 . . Corruption Purged 13 | . . . . . . . . . . . 2 1 . . . . 10 . . . . . . . . . . Corruption Blocked . | . . . . . . . . . . . . . . . . . . . . . . . . . . . . Effects 450 | . . . . . 31 29 13 53 7 17 5 1 . 15 13 28 29 27 . 23 29 63 10 23 34 . . Message Errors 105 | . . . . . 7 4 3 13 3 2 3 . . 6 3 8 5 4 . 3 8 13 4 7 9 . . Matter Fused 105 | . . . . . 8 6 4 5 1 5 . 1 . 2 5 5 5 8 . 10 4 18 4 7 7 . . Heat Flow Errors 45 | . . . . . 4 1 1 4 . 4 1 . . 1 3 3 6 1 . 2 6 4 . 1 3 . . Energy Discharges 56 | . . . . . 4 8 2 9 1 1 . . . 1 1 5 3 2 . 5 3 7 . 2 2 . . Parts Rejected 9 | . . . . . 1 1 . . . . . . . 1 . . 1 . . . 1 2 . . 2 . . Parts Fused 3 | . . . . . 1 . . 1 . . . . . . . . . . . . . . . . 1 . . Data Loss (minor) 67 | . . . . . 2 2 1 14 2 1 1 . . 2 . 5 5 10 . 2 2 10 1 3 4 . . Data Loss (major) 20 | . . . . . 2 2 . 4 . 2 . . . 1 . 1 . . . . . 4 . 1 3 . . Misfires 16 | . . . . . . 3 . 2 . 1 . . . 1 1 . 2 . . 1 1 1 1 1 1 . . Alerts 11 | . . . . . . . 2 . . 1 . . . . . 1 2 1 . . 1 1 . 1 1 . . Misdirections 3 | . . . . . . . . . . . . . . . . . . . . . 1 2 . . . . . Weapon Failures 10 | . . . . . 2 2 . 1 . . . . . . . . . 1 . . 2 1 . . 1 . . Overload Shots 9 | . . . . . . 5 . . . . . . . . . . . . . . . . . . . 2 2 Effects 1 | . . . . . . 1 . . . . . . . . . . . . . . . . . . . . . Energy Bleed 1 | . . . . . . 1 . . . . . . . . . . . . . . . . . . . . . Overflow Damage 3734 | . 10 . . . 6 24 . . . 2 11 65 122 15 6 11 671 4 111 420 264 126 464 298 178 475 451 Projectiles 2148 | . 10 . . . . . . . . . 8 65 20 . 6 . 81 4 53 140 58 30 464 266 174 410 359 Explosions 862 | . . . . . 6 24 . . . 2 3 . 102 15 . 11 148 . 58 . 206 94 . 32 4 65 92 Melee 724 | . . . . . . . . . . . . . . . . . 442 . . 280 . 2 . . . . . Knockbacks 70 | . 5 . . 5 . . . . 1 1 7 . . 2 . 1 7 3 . 1 . 3 19 14 1 . . Impact . | . . . . . . . . . . . . . . . . . . . . . . . . . . . . Kinetic 64 | . 5 . . 5 . . . . 1 1 6 . . 2 . 1 6 3 . 1 . 3 15 14 1 . . Secondary 6 | . . . . . . . . . . . 1 . . . . . 1 . . . . . 4 . . . . Self-Inflicted Damage 945 | . . . . . 160 77 . . . 32 23 . 57 10 . 22 58 . . . 340 . 18 14 4 130 . Shots 25 | . . . . . 4 3 . . . 1 1 . 1 1 . 1 2 . . . 3 . 2 2 2 2 . Rammed . | . . . . . . . . . . . . . . . . . . . . . . . . . . . . Targets Rammed . | . . . . . . . . . . . . . . . . . . . . . . . . . . . . Kicked . | . . . . . . . . . . . . . . . . . . . . . . . . . . . . Crushed . | . . . . . . . . . . . . . . . . . . . . . . . . . . . . Highest Temperature 370 | 30 234 10 . 45 256 187 95 240 117 274 249 370 162 314 200 323 336 272 63 288 324 252 158 201 333 30 309 Average Temperature 72 | 18 64 7 . 16 58 103 57 98 47 81 74 60 38 77 65 89 79 84 15 100 77 81 52 60 83 14 71 Received Heat Transfer 2404 | . 60 . . . 342 315 45 212 159 45 132 305 25 89 13 25 180 84 26 20 80 65 30 . 16 8 128 Effects 5 | . 1 . . . . . . . . . . . . 1 . . . . . . 1 2 . . . . . Shutdowns 1 | . . . . . . . . . . . . . . . . . . . . . 1 . . . . . . Energy Bleed 4 | . 1 . . . . . . . . . . . . 1 . . . . . . . 2 . . . . . Siege Activations . | . . . . . . . . . . . . . . . . . . . . . . . . . . . . Martial Activations . | . . . . . . . . . . . . . . . . . . . . . . . . . . . . Shielding Activations . | . . . . . . . . . . . . . . . . . . . . . . . . . . . . Robots Disrupted . | . . . . . . . . . . . . . . . . . . . . . . . . . . . . Combat Hostiles . | . . . . . . . . . . . . . . . . . . . . . . . . . . . . Robots Corrupted 29 | . . . . . . . . . . 1 1 10 1 . . . . . . . 6 . 1 . 2 2 5 Combat Hostiles 28 | . . . . . . . . . . 1 1 10 1 . . . . . . . 6 . . . 2 2 5 Parts Fried 70 | . . . . . 5 2 . . . 2 1 29 4 . . . . . . 1 15 . . . 2 3 6 Impact Corruptions 2 | . . . . . . . . . . . . . . . . . . . . . . . 1 . . . 1 Robots Melted 16 | . 1 . . . . 2 . . . . . . 1 . . . 1 2 1 1 . 1 . . . 3 3 Combat Hostiles 13 | . . . . . . 2 . . . . . . . . . . . 2 1 1 . 1 . . . 3 3 Parts Melted 58 | 1 . . . . 4 1 2 7 1 1 1 2 3 2 . . 1 3 9 4 . 1 . . . 10 5 Heat Transferred 31574 | 111 1221 37 . . 2211 1343 740 2368 1554 5193 700 350 200 1000 275 1455 1332 1129 628 999 50 302 . 200 1159 3538 3479 Parts Sabotaged . | . . . . . . . . . . . . . . . . . . . . . . . . . . . . Parts Stolen . | . . . . . . . . . . . . . . . . . . . . . . . . . . . . Parts Stripped . | . . . . . . . . . . . . . . . . . . . . . . . . . . . . Power Chain Reactions 10 | . . . . . 3 1 . . . 1 . . . . . . . . . . 1 . . . . . 4 Alert | -11 -10 -10 -10 -9 -8 -8 -8 -8 -7 -7 -6 -6 -5 -5 -5 -5 -4 -4 -3 -3 -3 -3 -2 -2 -2 -1 -1 ------- Run | Yrd Mat Min Exi Min Mat Gar Mat Gar Fac Gar Fac Gar Fac Gar Fac Gar Fac Gar Res Qua Sec Gar Res Tes Gar Acc Com Maximum Alert Level 4 | . . . . . 3 4 3 3 2 4 2 3 2 4 3 2 2 3 3 . 1 2 1 . 1 1 . Low Security (%) 42 | 100 100 100 . 100 78 . . . . . 89 26 . . 68 39 3 . . 100 89 26 70 100 62 75 100 Level 1 20 | . . . . . 5 . . 2 64 3 3 24 55 17 9 57 50 11 44 . 10 31 29 . 37 24 . Level 2 22 | . . . . . 13 16 56 56 35 42 7 29 44 23 20 2 46 51 50 . . 41 . . . . . Level 3 12 | . . . . . 2 37 43 41 . 43 . 20 . 50 1 . . 36 5 . . . . . . . . Level 4 2 | . . . . . . 46 . . . 10 . . . 9 . . . . . . . . . . . . . Level 5 . | . . . . . . . . . . . . . . . . . . . . . . . . . . . . High Security . | . . . . . . . . . . . . . . . . . . . . . . . . . . . . Max Security . | . . . . . . . . . . . . . . . . . . . . . . . . . . . . Peak Influence 1439 | 10 128 9 . . 745 1439 773 1046 548 1120 614 982 515 1280 710 407 610 1052 751 144 222 512 313 91 342 291 187 Initial 701 | . . 9 . . . 481 701 343 548 315 588 4 515 292 672 23 213 291 591 129 27 133 288 48 39 204 92 Average 344 | . 49 . . . 150 998 622 698 356 787 80 435 396 731 212 222 383 668 453 71 105 333 162 22 158 106 61 Influence Increases 16035 | 10 373 5 . . 1065 1058 406 953 479 835 352 1108 377 1138 433 504 1231 861 820 419 583 459 429 328 454 644 711 Destroy 0b10 Robot/C 6705 | . 240 . . . 520 500 220 440 320 380 200 465 195 315 90 72 444 240 324 204 240 120 192 96 204 324 360 Destroy 0b10 Robot/NC 375 | 10 15 5 . . 50 . 10 . 35 40 15 4 4 8 8 9 42 . 18 6 9 15 30 9 6 15 12 Destroy Leader 954 | . 54 . . . 146 20 54 20 62 20 40 32 24 16 2 6 84 24 56 26 54 18 38 26 18 54 60 Allied During Kill 1044 | . . . . . . 8 67 41 27 16 28 76 12 126 59 41 97 57 200 . 11 43 47 24 29 27 8 Successful Hack 297 | . . . . . 37 . 10 7 . 16 29 17 16 11 6 16 14 9 9 39 5 8 25 . 9 5 9 Disable Machine 1017 | . . . . . 45 30 45 . . 15 15 48 24 60 204 27 54 90 27 45 72 9 27 81 9 63 27 Anti-Garrison Action 2462 | . . . . . . 300 . 350 . 300 . 340 . 452 . 210 . 240 . . . 150 . . 120 . . Destroy Structure 2410 | . 4 . . . 27 95 . 35 5 33 10 90 78 126 64 123 442 174 168 90 192 96 52 92 50 138 226 Lose Combat Pursuer 771 | . 60 . . . 240 105 . 60 30 15 15 36 24 24 . . 54 27 18 9 . . 18 . 9 18 9 Influence Decreases 15874 | 10 348 30 . . 324 360 1316 436 1074 166 1466 132 941 276 1679 131 1222 225 1641 601 454 125 854 362 165 842 694 Entered New Map 4996 | . . 16 . . . 260 738 186 498 136 532 2 467 126 608 11 194 125 461 102 22 45 224 39 14 138 52 Time Decay 6516 | 10 348 14 . . 274 . 278 . 486 . 413 . 404 . 536 . 668 . 510 449 322 . 490 268 . 514 532 Lost Part 310 | . . . . . 50 40 . 50 10 . 30 10 . . . . . . 10 10 70 20 . . 10 . . Lost Ally 2202 | . . . . . . 60 . 200 80 30 116 120 70 150 110 120 210 100 210 40 40 60 140 55 141 40 110 Purge Threat 1850 | . . . . . . . 300 . . . 375 . . . 425 . 150 . 450 . . . . . . 150 . Squads Dispatched 87 | . 2 . . . 6 . 2 . 7 . 7 . 7 . 2 . 10 . 10 3 6 . 6 4 . 7 8 Investigation 4 | . . . . . . . 1 . . . 2 . . . . . . . . . . . . . . . 1 Extermination 36 | . . . . . . . . . 2 . 2 . 2 . 2 . 5 . 3 3 1 . 3 3 . 4 6 Reinforcement 27 | . 2 . . . 3 . . . . . 3 . 1 . . . 5 . 4 . 2 . 2 1 . 3 1 Assault 6 | . . . . . . . . . 2 . . . 1 . . . . . 3 . . . . . . . . Garrison 14 | . . . . . 3 . 1 . 3 . . . 3 . . . . . . . 3 . 1 . . . . Intercept . | . . . . . . . . . . . . . . . . . . . . . . . . . . . . Searches Triggered . | . . . . . . . . . . . . . . . . . . . . . . . . . . . . Unchained Authorized 3 | . . . . . . . . . . . . . . . . . 1 . . . . . 1 1 . . . Construction Impeded 3 | . . . . . 1 . . . . . . . . . . . 2 . . . . . . . . . . Haulers Reinforced 3 | . . . . . . . . . . . . . . . . . 1 . 2 . . . . . . . . Active Scanning Responses . | . . . . . . . . . . . . . . . . . . . . . . . . . . . . Cargo Convoy Interrupts 3 | . . . . . . . . . 1 . . . 1 . . . . . . . . . 1 . . . . Alert ID Control Effect 134 | . . . . . . . . . . 1 4 2 5 7 26 16 14 16 13 1 . 9 5 . 3 9 3 Stealth | -11 -10 -10 -10 -9 -8 -8 -8 -8 -7 -7 -6 -6 -5 -5 -5 -5 -4 -4 -3 -3 -3 -3 -2 -2 -2 -1 -1 --------- Run | Yrd Mat Min Exi Min Mat Gar Mat Gar Fac Gar Fac Gar Fac Gar Fac Gar Fac Gar Res Qua Sec Gar Res Tes Gar Acc Com Distress Signals 35 | . 1 . . . 6 . 1 1 2 . 1 . 2 3 2 . 4 . 2 . . . 9 . . . 1 Communications Jammed 609 | . . . . . . . . . . . . . 2 18 55 . 101 . 62 . . . 193 . . 154 24 Distress Signals 605 | . . . . . . . . . . . . . 2 18 55 . 100 . 62 . . . 191 . . 153 24 Times Spotted 825 | . 21 . . 25 46 25 17 28 36 18 23 36 26 41 34 29 69 32 41 25 30 25 45 17 31 50 55 Peak Tracking Total 20 | . 5 . . 20 10 4 3 4 11 6 3 4 6 6 4 4 17 5 6 3 4 4 12 3 5 5 5 Tactical Retreats 54 | . 3 . . 3 14 6 . 3 1 1 1 1 2 2 . . 5 3 2 1 . . 2 . 1 2 1 Traps | -11 -10 -10 -10 -9 -8 -8 -8 -8 -7 -7 -6 -6 -5 -5 -5 -5 -4 -4 -3 -3 -3 -3 -2 -2 -2 -1 -1 ------- Run | Yrd Mat Min Exi Min Mat Gar Mat Gar Fac Gar Fac Gar Fac Gar Fac Gar Fac Gar Res Qua Sec Gar Res Tes Gar Acc Com Traps Triggered 90 | . 4 . . . . 8 2 11 3 9 1 10 1 3 . 3 2 12 2 1 2 5 1 1 3 4 2 Indirectly 1 | . . . . . . . . . . . . 1 . . . . . . . . . . . . . . . Trap Hack Attempts . | . . . . . . . . . . . . . . . . . . . . . . . . . . . . Triggered . | . . . . . . . . . . . . . . . . . . . . . . . . . . . . Disarmed . | . . . . . . . . . . . . . . . . . . . . . . . . . . . . Reprogrammed . | . . . . . . . . . . . . . . . . . . . . . . . . . . . . Reused . | . . . . . . . . . . . . . . . . . . . . . . . . . . . . Traps Extracted . | . . . . . . . . . . . . . . . . . . . . . . . . . . . . Installed . | . . . . . . . . . . . . . . . . . . . . . . . . . . . . Triggered . | . . . . . . . . . . . . . . . . . . . . . . . . . . . . Machines | -11 -10 -10 -10 -9 -8 -8 -8 -8 -7 -7 -6 -6 -5 -5 -5 -5 -4 -4 -3 -3 -3 -3 -2 -2 -2 -1 -1 ---------- Run | Yrd Mat Min Exi Min Mat Gar Mat Gar Fac Gar Fac Gar Fac Gar Fac Gar Fac Gar Res Qua Sec Gar Res Tes Gar Acc Com Machines Disabled 138 | . . . . . 3 6 3 5 . 5 1 9 2 9 17 8 6 14 3 5 8 4 3 12 5 7 3 Max in Single Turn 3 | . . . . . 1 1 1 1 . 1 1 1 2 1 1 1 1 1 1 1 2 1 1 3 1 1 1 Garrison Access 6 | . . . . . . . . . 1 . . . . . . . . . 1 . . . 1 . . 3 . Garrison Relay 38 | . . . . . . 4 . 5 . 4 . 5 . 4 . 5 . 4 . . . 3 . . 4 . . Machines Repaired . | . . . . . . . . . . . . . . . . . . . . . . . . . . . . Machines Dismantled . | . . . . . . . . . . . . . . . . . . . . . . . . . . . . Machines Sabotaged . | . . . . . . . . . . . . . . . . . . . . . . . . . . . . Overloaded Fab Kills . | . . . . . . . . . . . . . . . . . . . . . . . . . . . . Hacking | -11 -10 -10 -10 -9 -8 -8 -8 -8 -7 -7 -6 -6 -5 -5 -5 -5 -4 -4 -3 -3 -3 -3 -2 -2 -2 -1 -1 --------- Run | Yrd Mat Min Exi Min Mat Gar Mat Gar Fac Gar Fac Gar Fac Gar Fac Gar Fac Gar Res Qua Sec Gar Res Tes Gar Acc Com Machines Accessed 139 | . 4 1 3 . 12 3 6 3 5 2 7 4 5 1 13 2 12 1 5 7 5 2 6 6 2 14 8 Terminals 85 | . 4 . . . 9 3 4 3 1 2 3 4 1 1 5 2 7 1 4 6 3 2 2 3 2 8 5 Fabricators 12 | . . . . . . . . . 1 . 1 . 1 . 3 . 2 . 1 . . . 1 . . 2 . Repair Stations 12 | . . . . . . . . . . . 1 . 1 . 3 . 1 . . 1 . . 1 . . 1 3 Recycling Units 2 | . . . . . . . . . 1 . . . . . . . . . . . . . 1 . . . . Scanalyzers 10 | . . . . . 2 . 1 . . . 1 . 1 . 1 . 1 . . . 1 . . 2 . . . Garrison Access 14 | . . . . . 1 . 1 . 2 . 1 . 1 . 1 . 1 . . . 1 . 1 1 . 3 . Total Hacks 261 | . 5 1 12 . 32 4 13 3 9 4 14 7 12 1 23 4 30 2 8 12 8 5 14 10 2 15 11 Successful 121 | . 2 1 12 . 19 . 8 1 3 1 5 3 11 1 7 2 12 1 2 5 2 2 7 5 1 5 3 Failed 139 | . 3 . . . 12 4 5 2 6 3 9 4 1 . 16 2 18 1 6 7 6 3 7 5 1 10 8 Catastrophic 35 | . 1 . . . 2 3 1 . 2 . 1 1 . . 2 . 4 . 2 2 1 1 2 1 1 4 4 Database Lockouts 1 | . . . . . 1 . . . . . . . . . . . . . . . . . . . . . . Manual 76 | . 2 . 1 . 11 . 3 . . 1 . . 5 . 13 1 12 1 3 4 2 3 5 . . 5 4 Terminals 163 | . 5 . . . 26 4 10 3 2 4 5 7 5 1 9 4 19 2 6 10 6 5 5 6 2 9 8 Fabricators 26 | . . . . . . . . . 3 . 3 . 3 . 6 . 4 . 2 . . . 3 . . 2 . Repair Stations 21 | . . . . . . . . . . . 3 . 2 . 5 . 2 . . 2 . . 3 . . 1 3 Recycling Units 3 | . . . . . . . . . 2 . . . . . . . . . . . . . 1 . . . . Scanalyzers 19 | . . . . . 4 . 2 . . . 2 . 1 . 2 . 4 . . . 1 . . 3 . . . Garrison Access 16 | . . . . . 2 . 1 . 2 . 1 . 1 . 1 . 1 . . . 1 . 2 1 . 3 . Terminal Hacks 62 | . 2 1 12 . 11 . 4 1 . 1 1 3 2 1 3 2 5 1 2 2 1 1 . 1 1 2 2 Record 12 | . . . 11 . 1 . . . . . . . . . . . . . . . . . . . . . . Robot Analysis 1 | . . . . . 1 . . . . . . . . . . . . . . . . . . . . . . Open Door 6 | . . 1 . . . . . 1 . . . 1 . . . . . . 1 . . . . . . 1 1 Branch Access Points 1 | . . . . . . . . . . . . . 1 . . . . . . . . . . . . . . Emergency Access Points 6 | . . . . . 2 . . . . . . 1 . 1 . 1 . 1 . . . . . . . . . Terminal Index 2 | . . . . . . . . . . . . . . . . . . . 1 1 . . . . . . . Garrison Index 1 | . . . . . . . . . . . . . . . . . 1 . . . . . . . . . . Alert Level 1 | . 1 . . . . . . . . . . . . . . . . . . . . . . . . . . Unreport Threat 5 | . . . . . . . 2 . . . . . . . 1 . 1 . . . . . . . . 1 . Locate Traps 3 | . . . . . . . . . . . 1 . . . . . . . . 1 . . . 1 . . . Dispatch Records 1 | . . . . . 1 . . . . . . . . . . . . . . . . . . . . . . Maintenance Status 2 | . . . . . 1 . . . . . . . . . . . 1 . . . . . . . . . . Security Status 1 | . . . . . . . . . . . . . . . . . . . . . 1 . . . . . . Transport Status 2 | . . . . . 1 . 1 . . . . . . . . . . . . . . . . . . . . Hauler Manifests 3 | . . . . . 1 . 1 . . . . . . . . . 1 . . . . . . . . . . Registered Components 1 | . . . . . . . . . . . . . . . . . . . . . . . . . . . 1 Zone Layout 8 | . 1 . . . 3 . . . . . . . 1 . 2 . 1 . . . . . . . . . . Garrison Registry 3 | . . . . . . . . . . . . . . . . 1 . . . . . 1 . . 1 . . Patrol Navigation 1 | . . . . . . . . . . . . 1 . . . . . . . . . . . . . . . Security Stations 1 | . . . . . . . . . . 1 . . . . . . . . . . . . . . . . . Proto ID Catalog 1 | . . . 1 . . . . . . . . . . . . . . . . . . . . . . . . Fabricator Hacks 6 | . . . . . . . . . 1 . 2 . 1 . . . 1 . . . . . 1 . . . . Network Status 3 | . . . . . . . . . . . . . 1 . . . 1 . . . . . 1 . . . . Load Schematic 2 | . . . . . . . . . 1 . 1 . . . . . . . . . . . . . . . . Build 1 | . . . . . . . . . . . 1 . . . . . . . . . . . . . . . . Repair Station Hacks 6 | . . . . . . . . . . . 1 . 2 . 1 . . . . 1 . . 1 . . . . Scan Component 5 | . . . . . . . . . . . 1 . 1 . 1 . . . . 1 . . 1 . . . . Repair 1 | . . . . . . . . . . . . . 1 . . . . . . . . . . . . . . Recycling Unit Hacks . | . . . . . . . . . . . . . . . . . . . . . . . . . . . . Scanalyzer 11 | . . . . . 3 . 2 . . . . . . . 1 . 2 . . . . . . 3 . . . Insert Component 2 | . . . . . . . 1 . . . . . . . . . . . . . . . . 1 . . . Analyze 1 | . . . . . . . 1 . . . . . . . . . . . . . . . . . . . . Retrieve Study 8 | . . . . . 3 . . . . . . . . . 1 . 2 . . . . . . 2 . . . Garrison Access Hacks 15 | . . . . . 1 . 1 . 2 . 1 . 1 . 1 . 1 . . . 1 . 2 1 . 3 . Unlock Access 10 | . . . . . 1 . 1 . 2 . 1 . 1 . 1 . 1 . . . 1 . . 1 . . . Seal Access 4 | . . . . . . . . . . . . . . . . . . . . . . . 1 . . 3 . Coupler Status 1 | . . . . . . . . . . . . . . . . . . . . . . . 1 . . . . Unauthorized Hacks 21 | . . . . . 4 . 1 . . . . . 5 . 1 . 3 . . 2 . 1 3 . . . 1 Terminals 13 | . . . . . 4 . 1 . . . . . 3 . . . 1 . . 2 . 1 1 . . . . Track 1 | . . . . . . . . . . . . . . . . . . . . . . 1 . . . . . Assimilate 1 | . . . . . 1 . . . . . . . . . . . . . . . . . . . . . . Botnet 5 | . . . . . 2 . 1 . . . . . 1 . . . 1 . . . . . . . . . . Disrupt 2 | . . . . . 1 . . . . . . . . . . . . . . 1 . . . . . . . Operators 3 | . . . . . . . . . . . . . 1 . . . . . . 1 . . 1 . . . . Skim 1 | . . . . . . . . . . . . . 1 . . . . . . . . . . . . . . Fabricators 5 | . . . . . . . . . . . . . 2 . . . 2 . . . . . 1 . . . . Report 1 | . . . . . . . . . . . . . 1 . . . . . . . . . . . . . . Liberate 1 | . . . . . . . . . . . . . . . . . 1 . . . . . . . . . . Haulers 3 | . . . . . . . . . . . . . 1 . . . 1 . . . . . 1 . . . . Repair Stations 3 | . . . . . . . . . . . . . . . 1 . . . . . . . 1 . . . 1 Mechanics 2 | . . . . . . . . . . . . . . . 1 . . . . . . . 1 . . . . Patch 1 | . . . . . . . . . . . . . . . . . . . . . . . . . . . 1 Recycling Units . | . . . . . . . . . . . . . . . . . . . . . . . . . . . . Scanalyzers . | . . . . . . . . . . . . . . . . . . . . . . . . . . . . Garrison Access . | . . . . . . . . . . . . . . . . . . . . . . . . . . . . Data Cores Recovered 1 | . . . . . . . . . . . . . . . . . . . . . . . . . . . 1 Used . | . . . . . . . . . . . . . . . . . . . . . . . . . . . . Hacking Detections 109 | . 2 . . . 9 3 4 2 3 2 7 3 3 . 12 2 12 1 4 7 4 2 5 5 1 10 6 Full Trace Events 1 | . . . . . . . . . . . 1 . . . . . . . . . . . . . . . . Feedback Events . | . . . . . . . . . . . . . . . . . . . . . . . . . . . . Feedback Blocked . | . . . . . . . . . . . . . . . . . . . . . . . . . . . . Robot Schematics Acquired 1 | . . . . . . . . . . . . . . . . . . . . . . . . 1 . . . Robots Built . | . . . . . . . . . . . . . . . . . . . . . . . . . . . . Authchips . | . . . . . . . . . . . . . . . . . . . . . . . . . . . . Time . | . . . . . . . . . . . . . . . . . . . . . . . . . . . . Total Robot Build Rating . | . . . . . . . . . . . . . . . . . . . . . . . . . . . . Part Schematics Acquired 15 | . . . . . . . 1 . . . . . . . . . . . . . 7 . . 7 . . . Parts Built . | . . . . . . . . . . . . . . . . . . . . . . . . . . . . Authchips . | . . . . . . . . . . . . . . . . . . . . . . . . . . . . Time 62 | . . . . . . . . . . . 62 . . . . . . . . . . . . . . . . Total Part Build Rating . | . . . . . . . . . . . . . . . . . . . . . . . . . . . . Part Studies Acquired 8 | . . . . . 3 . . . . . . . . . 1 . 2 . . . . . . 2 . . . Parts Repaired 1 | . . . . . . . . . . . . . 1 . . . . . . . . . . . . . . Time 44 | . . . . . . . . . . . . . 44 . . . . . . . . . . . . . . Parts Recycled . | . . . . . . . . . . . . . . . . . . . . . . . . . . . . Recycled Matter . | . . . . . . . . . . . . . . . . . . . . . . . . . . . . Retrieved Matter . | . . . . . . . . . . . . . . . . . . . . . . . . . . . . Retrieved Components . | . . . . . . . . . . . . . . . . . . . . . . . . . . . . Parts Scanalyzed 1 | . . . . . . . 1 . . . . . . . . . . . . . . . . . . . . Part Schematics Acquired 1 | . . . . . . . 1 . . . . . . . . . . . . . . . . . . . . Parts Damaged . | . . . . . . . . . . . . . . . . . . . . . . . . . . . . Bothacking | -11 -10 -10 -10 -9 -8 -8 -8 -8 -7 -7 -6 -6 -5 -5 -5 -5 -4 -4 -3 -3 -3 -3 -2 -2 -2 -1 -1 ------------ Run | Yrd Mat Min Exi Min Mat Gar Mat Gar Fac Gar Fac Gar Fac Gar Fac Gar Fac Gar Res Qua Sec Gar Res Tes Gar Acc Com Used RIF Installer 11 | . . . . . . 1 . 1 . 2 . 1 . 1 . 1 . 2 . . . 1 . . 1 . . Hotswap 1 | . . . . . . . . 1 . . . . . . . . . . . . . . . . . . . Command Fork 1 | . . . . . . . . . . . . . . . . . . 1 . . . . . . . . . Threat Obfuscator 2 | . . . . . . . . . . . . 1 . . . 1 . . . . . . . . . . . Signal Jammer 1 | . . . . . . . . . . . . . . 1 . . . . . . . . . . . . . Robot Detection 1 | . . . . . . . . . . 1 . . . . . . . . . . . . . . . . . Alert ID Control 1 | . . . . . . . . . . 1 . . . . . . . . . . . . . . . . . Structural Interface 1 | . . . . . . . . . . . . . . . . . . . . . . . . . 1 . . Autooverride 1 | . . . . . . . . . . . . . . . . . . . . . . 1 . . . . . Crosswire 1 | . . . . . . . . . . . . . . . . . . 1 . . . . . . . . . Robots Hacked 219 | . . . . . . 4 . 12 13 4 7 6 7 13 6 12 23 11 17 6 6 12 14 2 18 12 14 Non-combat 49 | . . . . . . . . . 3 . 3 2 3 1 5 . 12 . 6 . 1 . 6 . . 6 1 Combat 170 | . . . . . . 4 . 12 10 4 4 4 4 12 1 12 11 11 11 6 5 12 8 2 18 6 13 Autooverrided 11 | . . . . . . . . . . . . . . . . . . . . . . . 2 . 3 1 5 Robot Hacks Applied 235 | . . . . . . 4 . 15 14 4 10 6 9 14 9 13 24 12 23 8 6 12 14 3 15 11 9 parse_system 14 | . . . . . . . . 1 1 1 . . 1 1 . 1 2 . . 2 . 2 1 1 . . . no_distress 1 | . . . . . . . . . . . . . . . . . . . . . . . 1 . . . . find_chute 1 | . . . . . . . . . . . 1 . . . . . . . . . . . . . . . . map_walls 1 | . . . . . . . . . . . . . . . . . 1 . . . . . . . . . . map_earth 2 | . . . . . . . . . . . . . . . . . . . . . . . . . . 2 . drop_inventory 19 | . . . . . . . . . 2 . 1 . 3 . 2 . 4 . 2 . 1 . 2 . . 2 . recall_reinforcements 1 | . . . . . . . . . . . . . . . . . . . 1 . . . . . . . . ignore_parts 1 | . . . . . . . . . . . . . . . . . 1 . . . . . . . . . . purge_threat 9 | . . . . . . . . . . . 3 . . . 2 . . . 4 . . . . . . . . block_reporting 2 | . . . . . . . . . . . . . . . 1 . . . . . . . 1 . . . . map_route 3 | . . . . . . . . . . . . . . . . . 1 . 1 . . . . . . 1 . redirect_shields 2 | . . . . . . . . . . . . . . . . . . . . . . . 2 . . . . disable_scanner 1 | . . . . . . . . . . . . . . . . . . . . . 1 . . . . . . emergency_deploy 3 | . . . . . . . . . . . . . 1 1 . . . . . . . . 1 . . . . find_garrison 1 | . . . . . . . . . . . . . . . . . . . 1 . . . . . . . . reboot_propulsion 1 | . . . . . . . . . . . . . . . . . . 1 . . . . . . . . . spike_heat 2 | . . . . . . . . 1 . . . . . . . . . . 1 . . . . . . . . overload_power 3 | . . . . . . . . . . . . . . . . . 2 1 . . . . . . . . . amplify_resonance 18 | . . . . . . . . . 2 . . . 1 . . 1 3 1 3 . 1 . . . 2 2 2 wipe_record 7 | . . . . . . . . 2 . . . . . . . . 1 1 1 2 . . . . . . . disable_weapons 1 | . . . . . . . . . . . . . . 1 . . . . . . . . . . . . . reboot_system 16 | . . . . . . 1 . 1 2 . . . 1 . . 1 1 . 1 1 . . . . 2 3 2 go_dormant 1 | . . . . . . . . . . . . . . . . . . . . 1 . . . . . . . overwrite_iff 51 | . . . . . . . . 5 4 2 1 1 1 5 1 3 1 5 3 2 2 3 2 . 7 . 3 streamctrl_high 6 | . . . . . . 1 . . . . . . . . . . . 1 . . . . 2 . 1 1 . formatsys_low 14 | . . . . . . . . . . . 1 2 . . 3 . 2 . 2 . 1 . 1 2 . . . formatsys_high 53 | . . . . . . 2 . 5 2 1 3 3 1 6 . 7 5 2 3 . . 7 1 . 3 . 2 formatsys_deep 1 | . . . . . . . . . 1 . . . . . . . . . . . . . . . . . . Relay Couplers Released 164 | . . . . . . 17 . 20 3 17 . 22 . 16 4 20 . 16 3 . . 10 . . 16 . . Machine Destruction 160 | . . . . . . 17 . 20 3 17 . 22 . 16 . 20 . 16 3 . . 10 . . 16 . . Programmers 4 | . . . . . . . . . . . . . . . 4 . . . . . . . . . . . . Attached 73 | . . . . . . 2 . 7 4 4 2 7 2 6 2 5 3 2 2 2 1 6 3 . 9 3 1 Crosswired 17 | . . . . . . . . . . . . . . . . . . 5 . . . 6 . . 6 . . Fabnet Peak Effective % . | . . . . . . . . . . . . . . . . . . . . . . . . . . . . Robots Rewired 38 | . . . . . . 3 . 5 . 3 1 6 . 12 . . . 7 . . . 1 . . . . . Allies Hacked 12 | . . . . . . . . 2 . . . . 1 . . 1 . 1 3 . 1 . 2 1 . . . Hacks Repelled . | . . . . . . . . . . . . . . . . . . . . . . . . . . . . Allies | -11 -10 -10 -10 -9 -8 -8 -8 -8 -7 -7 -6 -6 -5 -5 -5 -5 -4 -4 -3 -3 -3 -3 -2 -2 -2 -1 -1 -------- Run | Yrd Mat Min Exi Min Mat Gar Mat Gar Fac Gar Fac Gar Fac Gar Fac Gar Fac Gar Res Qua Sec Gar Res Tes Gar Acc Com Total Allies 187 | . . . . . 1 6 . 14 10 6 6 12 2 23 4 10 8 17 8 3 3 12 10 2 16 2 12 Largest Group 15 | . . . . . 1 3 3 4 5 5 6 6 6 15 11 10 6 8 7 2 2 6 6 2 4 4 3 Highest-Rated Group 525 | . . . . . 10 76 76 91 192 155 180 219 219 523 380 308 345 525 436 60 99 368 430 245 244 244 427 Highest-Rated Ally 215 | . . . . . 10 31 31 31 109 109 32 99 89 49 41 49 142 148 148 30 56 85 183 183 69 64 215 Total Orders 364 | . . . . . . 1 13 17 10 10 5 45 12 34 40 34 25 24 38 2 3 13 4 13 4 7 10 STAY 162 | . . . . . . 1 6 9 4 4 3 18 5 16 14 17 7 10 15 . 2 6 2 10 2 4 7 ROAM 6 | . . . . . . . . 1 . 1 . 1 . . . . . . 1 1 . 1 . . . . . FOLLOW 149 | . . . . . . . 6 7 5 3 2 19 4 15 11 12 12 14 19 . 1 6 2 3 2 3 3 GUARD 1 | . . . . . . . . . . . . . . . . . 1 . . . . . . . . . . AID 24 | . . . . . . . 1 . . . . 7 3 . 3 5 2 . 3 . . . . . . . . DROP 2 | . . . . . . . . . 1 1 . . . . . . . . . . . . . . . . . EXPLORE 6 | . . . . . . . . . . . . . . . 6 . . . . . . . . . . . . RETURN 14 | . . . . . . . . . . 1 . . . 3 6 . 3 . . 1 . . . . . . . Ally Attacks 1359 | . . . . . . 5 35 69 31 18 35 44 32 127 98 110 134 106 199 21 10 64 60 16 62 53 30 Total Damage 41032 | . . . . . . 194 619 966 601 1605 829 1432 1015 3262 3250 2674 3693 2954 6290 187 231 1922 2473 431 1941 1945 2518 Kills 221 | . . . . . . 2 7 7 8 14 5 7 7 14 32 18 18 19 31 1 . 9 5 2 3 9 3 Allies Corrupted 16 | . . . . . . . . 1 . . 1 . 1 2 . 1 1 1 2 . 1 . 2 . . . 3 Allies Melted 2 | . . . . . . . . . . . . . . . . . . 1 . . . . 1 . . . . Intel | -11 -10 -10 -10 -9 -8 -8 -8 -8 -7 -7 -6 -6 -5 -5 -5 -5 -4 -4 -3 -3 -3 -3 -2 -2 -2 -1 -1 ------- Run | Yrd Mat Min Exi Min Mat Gar Mat Gar Fac Gar Fac Gar Fac Gar Fac Gar Fac Gar Res Qua Sec Gar Res Tes Gar Acc Com Active Infowar (turns) 23614 | 40 985 779 674 2 104 . 1 . . 668 1176 1882 910 386 2 . 1934 1885 1394 1172 723 1483 1010 1001 1147 2133 2123 Optics 16006 | . . . . . . . 1 . . . . . . . . . 1934 1885 1394 1172 723 1483 1010 1001 1147 2133 2123 Sensors 104 | . . . . . 104 . . . . . . . . . . . . . . . . . . . . . . IFF 529 | . . . . . . . . . . . 527 2 . . . . . . . . . . . . . . . Terrain 986 | . . . . . . . . . . . . . . . . . 772 . 214 . . . . . . . . Seismic 3795 | 40 985 779 674 2 . . . . . 666 649 . . . . . . . . . . . . . . . . Cloaking 1 | . . . . . . . . . . . . . . . . . . . . . . . . . . 1 . Spoofing 2 | . . . . . . . . . . 2 . . . . . . . . . . . . . . . . . Jamming 3176 | . . . . . . . . . . . . 1880 910 386 . . . . . . . . . . . . . ECM 3 | . . . . . . . . . . . . . . . 2 . . . . . . . . 1 . . . Robot Analysis Total 1 | . . . . . 1 . . . . . . . . . . . . . . . . . . . . . . Derelict Logs Recovered 2 | . . 1 . 1 . . . . . . . . . . . . . . . . . . . . . . . Drone Launches 26 | . . . . . . . . . . 1 . . . 4 7 . 6 5 . 3 . . . . . . . Drone Recoveries 22 | . . . . . . . . . . 1 . . . 4 6 . 5 5 . 1 . . . . . . . Exploration | -11 -10 -10 -10 -9 -8 -8 -8 -8 -7 -7 -6 -6 -5 -5 -5 -5 -4 -4 -3 -3 -3 -3 -2 -2 -2 -1 -1 ------------- Run | Yrd Mat Min Exi Min Mat Gar Mat Gar Fac Gar Fac Gar Fac Gar Fac Gar Fac Gar Res Qua Sec Gar Res Tes Gar Acc Com Turns Passed 38915 | 143 1231 779 675 261 2199 1247 610 1755 1279 1700 1399 2005 979 2351 1589 1752 2578 1885 1394 1172 723 1483 1286 1037 1147 2133 2123 Spaces Moved 19590 | 76 631 471 533 143 1190 693 397 864 728 767 750 811 470 1126 797 826 1371 839 705 641 395 679 610 396 531 1102 1048 Core 4 | 3 1 . . . . . . . . . . . . . . . . . . . . . . . . . . Treads 1282 | 73 630 471 108 . . . . . . . . . . . . . . . . . . . . . . . . Legs 1478 | . . . . . 1105 373 . . . . . . . . . . . . . . . . . . . . . Wheels 16826 | . . . 425 143 85 320 397 864 728 767 750 811 470 1126 797 826 1371 839 705 641 395 679 610 396 531 1102 1048 Hover . | . . . . . . . . . . . . . . . . . . . . . . . . . . . . Flight . | . . . . . . . . . . . . . . . . . . . . . . . . . . . . Fastest Speed 50 | 50 160 160 115 115 115 95 110 110 135 115 140 150 165 165 160 160 135 137 155 137 140 137 155 155 155 155 155 Average Speed 149 | 155 160 160 124 140 149 120 110 130 141 143 148 160 165 165 160 160 138 142 155 149 143 156 155 162 155 158 160 Slowest Speed 500 | 160 500 160 160 145 200 130 110 140 155 310 155 165 165 165 165 160 143 155 155 155 160 240 155 173 187 173 260 Overloaded Moves . | . . . . . . . . . . . . . . . . . . . . . . . . . . . . Propulsion Burnouts . | . . . . . . . . . . . . . . . . . . . . . . . . . . . . Robots Hopped . | . . . . . . . . . . . . . . . . . . . . . . . . . . . . Potential Cave-ins 5 | . . . . . . . . . . . . . . . . . 5 . . . . . . . . . . Cave-ins Triggered . | . . . . . . . . . . . . . . . . . . . . . . . . . . . . Teleports 1 | . . . . . . . . . . . . . . . . . . . . . . . . 1 . . . Exploration Rate (%) 54 | 4 94 57 91 40 90 75 42 82 19 61 24 90 14 87 32 91 37 89 20 87 25 68 20 39 68 41 49 Regions Visited 27 Branch Regions 7 Pre-discovered Areas 1 | . . . 1 . . . . . . . . . . . . . . . . . . . . . . . . Known Exits Taken 11 | . . . . . 1 . 1 . 1 . 1 . 1 . 1 . 1 . 1 . 1 . 1 1 . . . Unknown Exits Taken 7 | 1 1 1 1 1 . . . . . . . . . . . . . . . 1 . . . . . 1 . Scrap Searched 2 | . . 1 . 1 . . . . . . . . . . . . . . . . . . . . . . . Spaces Dug 131 | . . . . . 4 . . . 1 . 8 . 4 2 7 1 39 2 12 10 . 7 8 4 2 9 11 Terrain Destroyed 1025 | . . . . . 30 32 . . 4 3 10 12 45 41 12 31 253 46 43 56 133 33 22 61 16 66 76 Melee 9 | . . . . . 4 . . . 1 . . . . . . . 1 . . 2 . 1 . . . . . Projectile 274 | . . . . . . 1 . . . . 10 . 7 8 7 2 64 19 19 26 1 3 22 13 13 34 25 AOE 728 | . . . . . 26 31 . . 3 3 . 12 38 33 5 29 188 24 24 28 132 29 . 48 3 32 40 Terrain Rammed . | . . . . . . . . . . . . . . . . . . . . . . . . . . . . Walls Destroyed . | . . . . . . . . . . . . . . . . . . . . . . . . . . . . Machines Disabled . | . . . . . . . . . . . . . . . . . . . . . . . . . . . . Actions | -11 -10 -10 -10 -9 -8 -8 -8 -8 -7 -7 -6 -6 -5 -5 -5 -5 -4 -4 -3 -3 -3 -3 -2 -2 -2 -1 -1 --------- Run | Yrd Mat Min Exi Min Mat Gar Mat Gar Fac Gar Fac Gar Fac Gar Fac Gar Fac Gar Res Qua Sec Gar Res Tes Gar Acc Com Total 26961 | 94 762 496 546 179 1481 1014 546 1352 901 1198 964 1391 634 1523 1083 1185 1856 1407 947 820 534 981 838 754 775 1342 1358 Wait 3147 | 3 40 19 . 22 118 110 119 216 39 93 79 241 69 170 228 193 204 344 107 39 32 83 59 247 91 58 124 Move 19569 | 75 630 470 532 142 1190 692 396 863 727 766 750 810 470 1125 797 825 1371 838 704 640 395 678 609 395 530 1101 1048 Hop . | . . . . . . . . . . . . . . . . . . . . . . . . . . . . Pick Up 389 | 7 18 2 4 1 20 14 1 17 17 22 15 30 12 28 8 18 27 12 16 13 15 21 8 16 12 10 5 Fast Attach 145 | 7 8 . . . 16 6 3 3 8 13 9 3 7 5 1 5 2 1 1 2 3 13 5 8 6 6 4 Attach 135 | . 1 1 1 1 7 5 . 4 5 6 8 7 2 6 1 4 10 2 6 9 5 14 3 10 9 3 5 Detach 91 | . 1 . . . 3 1 1 1 2 12 5 6 4 3 1 5 2 2 2 9 . 9 2 6 7 2 5 Swap 567 | . 9 1 5 1 27 21 8 36 33 24 22 36 16 23 7 12 51 19 14 18 12 16 26 23 29 40 38 Drop 375 | . 12 2 4 . 27 14 6 12 14 27 18 21 15 25 7 17 22 12 9 11 9 24 12 20 8 18 9 Fire 1919 | 2 43 1 . 12 67 70 12 109 55 175 51 93 39 118 33 89 147 106 72 71 63 67 114 29 65 96 120 Melee 79 | . . . . . 6 5 . 7 1 . 7 . . . . . 12 . . 8 . 31 . . 2 . . Ram . | . . . . . . . . . . . . . . . . . . . . . . . . . . . . Kick . | . . . . . . . . . . . . . . . . . . . . . . . . . . . . Crush . | . . . . . . . . . . . . . . . . . . . . . . . . . . . . Escape Stasis 413 | . . . . . . 53 . 56 . 56 . 69 . 20 . 16 8 71 16 . . 24 . . 16 8 . Rewire 132 | . . . . . . 23 . 28 . 4 . 75 . . . 1 . . . . . 1 . . . . . Trap . | . . . . . . . . . . . . . . . . . . . . . . . . . . . . Miscellaneous . | . . . . . . . . . . . . . . . . . . . . . . . . . . . . Route ------- -11/Scrapyard -10/Materials (discovered 4 exits: [*Mat x3] / *Min) -10/Mines (discovered 3 exits: [*Mat x2] / *Exi) -10/Exiles (discovered 2 exits: [*Min x2]) -9/Mines -8/Materials (discovered 4 exits: *Fac x3 / Gar) -8/Garrison (discovered 4 exits: *Mat x4) -8/Materials (discovered 2 exits: *Fac / Gar) -8/Garrison (discovered 4 exits: *Fac x3 / [*Mat]) -7/Factory (discovered 3 exits: [*Low x2] / Gar) -7/Garrison (discovered 3 exits: *Fac x3) -6/Factory (discovered 2 exits: [*Ext] / Gar) -6/Garrison (discovered 3 exits: *Fac x3) -5/Factory (discovered 3 exits: Upp x2 / Gar) -5/Garrison (discovered 3 exits: *Fac x3) -5/Factory (discovered 2 exits: *Fac / Gar) -5/Garrison (discovered 3 exits: *Fac x3) -4/Factory (discovered 4 exits: *Res / [*Upp x2] / Gar) -4/Garrison (discovered 2 exits: *Res x2) -3/Research (discovered 2 exits: *Res / *Qua) -3/Quarantine (discovered 3 exits: *Res / *Sec / [*Frg]) -3/Section 7 -3/Garrison (discovered 3 exits: *Res x3) -2/Research -2/Testing -2/Garrison (discovered 3 exits: *Acc x3) -1/Access -1/Command 0b10 Command History --------- Turn | Location | Event 3 | -11/Scrapyard | Discovered new exit (range 16) 144 | -11/Scrapyard | Entered Materials 312 | -10/Materials | Build established: Mutant 586 | -10/Materials | Discovered new exit (range 7) 842 | -10/Materials | Discovered new exit (range 16) 1051 | -10/Materials | Discovered new exit (range 6) 1191 | -10/Materials | Discovered new exit (range 15) 1375 | -10/Materials | Entered Mines 1391 | -10/Mines | Deemed a non-threat by the Exiles lab entrance 1391 | -10/Mines | Discovered new exit (range 5) 1433 | -10/Mines | Learned 2 Materials zone layouts 1678 | -10/Mines | Discovered new exit (range 12) 1904 | -10/Mines | Found the Drone Emporium 1913 | -10/Mines | Found Prototype Device 1995 | -10/Mines | Discovered new exit (range 10) 2027 | -10/Mines | Received a Rocket Launcher from a helpful Derelict 2154 | -10/Mines | Entered Exiles 2169 | -10/Exiles | Identified Thief Drone Bay 2200 | -10/Exiles | Met 8R-AWN 2213 | -10/Exiles | Discovered new exit (range 15) 2282 | -10/Exiles | Met EX-HEX 2366 | -10/Exiles | Met EX-DEC 2389 | -10/Exiles | Visited The Gauntlet 2519 | -10/Exiles | Learned location of Zion (-7) 2573 | -10/Exiles | Discovered new exit (range 14) 2650 | -10/Exiles | Met EX-BIN 2674 | -10/Exiles | Aligned with FarCom system 2675 | -10/Exiles | Given EX-Vault access code 2702 | -10/Exiles | Opened EX-Vault 2710 | -10/Exiles | Found AWS/Gauss 2714 | -10/Exiles | Found AWS/Autocannon 2720 | -10/Exiles | Found YOLO Cannon 2743 | -10/Exiles | Warned to stay clear of 0b10 Research branches 2829 | -10/Exiles | Stole three prototypes: YOLO Cannon, AWS/Gauss, AWS/Autocannon 2829 | -10/Exiles | Entered Mines 2830 | -9/Mines | Assembled infested the area 2835 | -9/Mines | Assisted by a Guerilla fighting off Assembled 3073 | -9/Mines | Discovered new exit (range 8) 3090 | -9/Mines | Entered Materials 3090 | -8/Materials | Evolved 4 slots: Propulsion x1, Utility x3 3091 | -8/Materials | Identified exit to Factory 3330 | -8/Materials | Discovered exit to Factory (range 3) 4764 | -8/Materials | Central database locked down 4933 | -8/Materials | Garrison activated, responded to threat 4941 | -8/Materials | Core integrity fell below 50% 4955 | -8/Materials | Discovered exit to Factory (range 14) 4966 | -8/Materials | Destroyed 7 combat bots 4968 | -8/Materials | Lost 4 parts (1n1u2w) 5289 | -8/Materials | Identified exit to Garrison 5289 | -8/Materials | Entered Garrison 5409 | -8/Garrison | Garrison Relay disabled 5483 | -8/Garrison | Triggered checkpoint 5645 | -8/Garrison | Garrison Relay disabled 5682 | -8/Garrison | Discovered new exit (range 14) 5795 | -8/Garrison | Triggered checkpoint 5853 | -8/Garrison | Triggered checkpoint 5872 | -8/Garrison | Discovered new exit (range 8) 5879 | -8/Garrison | Discovered new exit (range 14) 5919 | -8/Garrison | Installed Relay Interface Framework 5972 | -8/Garrison | Garrison Relay disabled 5979 | -8/Garrison | Lost 4 parts (2n1u1w) 6125 | -8/Garrison | Triggered checkpoint 6202 | -8/Garrison | Build established: Bothacker-Mutant 6204 | -8/Garrison | Discovered new exit (range 8) 6300 | -8/Garrison | Lost 3 allies 6357 | -8/Garrison | Triggered checkpoint 6370 | -8/Garrison | Garrison Relay disabled 6536 | -8/Garrison | Entered Materials 6536 | -8/Materials | Accompanied by 3 allies 6841 | -8/Materials | Discovered exit to Factory (range 15) 7061 | -8/Materials | Garrison activated, responded to threat 7142 | -8/Materials | Identified exit to Garrison 7146 | -8/Materials | Entered Garrison 7146 | -8/Garrison | Accompanied by 1 ally 7164 | -8/Garrison | Triggered checkpoint 7229 | -8/Garrison | Garrison Relay disabled 7434 | -8/Garrison | Triggered checkpoint 7437 | -8/Garrison | Core integrity fell below 20% 7512 | -8/Garrison | Discovered exit to Factory (range 13) 7669 | -8/Garrison | Triggered checkpoint 7698 | -8/Garrison | Triggered checkpoint 7746 | -8/Garrison | Lost 4 parts (1p2n1w) 7753 | -8/Garrison | Lost 4 allies 7860 | -8/Garrison | Garrison Relay disabled 7954 | -8/Garrison | Triggered checkpoint 8032 | -8/Garrison | Discovered new exit (range 5) 8080 | -8/Garrison | Discovered exit to Factory (range 14) 8086 | -8/Garrison | Lost 3 allies 8116 | -8/Garrison | Triggered checkpoint 8250 | -8/Garrison | Garrison Relay disabled 8438 | -8/Garrison | Triggered checkpoint 8482 | -8/Garrison | Triggered checkpoint 8492 | -8/Garrison | Discovered exit to Factory (range 12) 8582 | -8/Garrison | Garrison Relay disabled 8597 | -8/Garrison | Garrison Relay disabled 8737 | -8/Garrison | Expanded RIF knowledge: Hotswap 8901 | -8/Garrison | Entered Factory 8901 | -7/Factory | Accompanied by 1 ally 8901 | -7/Factory | Evolved 2 slots: Utility x1, Weapon x1 8903 | -7/Factory | FarCom data flow suspended 9016 | -7/Factory | Discovered new exit (range 3) 9036 | -7/Factory | Identified exit to Garrison 9212 | -7/Factory | Build established: Bothacker-Gunner 9802 | -7/Factory | Discovered new exit (range 5) 9957 | -7/Factory | Garrison activated, responded to threat 10034 | -7/Factory | Assimilated Heavy ARC 4a with formatsys_deep 10035 | -7/Factory | Cargo convoy interrupted 10156 | -7/Factory | Identified exit to Garrison 10180 | -7/Factory | Entered Garrison 10180 | -7/Garrison | Accompanied by 3 allies 10188 | -7/Garrison | Triggered checkpoint 10299 | -7/Garrison | Build established: Gunner 10611 | -7/Garrison | Discovered new exit (range 12) 10622 | -7/Garrison | Found Prototype Processor 10622 | -7/Garrison | Identified Exp. Terrain Scan Processor 10643 | -7/Garrison | Found PL-3XN's Ring of Power 10673 | -7/Garrison | Triggered checkpoint 10695 | -7/Garrison | Garrison Relay disabled 10917 | -7/Garrison | Expanded RIF knowledge: Alert ID Control 10959 | -7/Garrison | Learned Factory security intel 10998 | -7/Garrison | Build established: Bothacker-Gunner 11062 | -7/Garrison | Triggered checkpoint 11136 | -7/Garrison | Discovered new exit (range 10) 11205 | -7/Garrison | Expanded RIF knowledge: Robot Detection 11210 | -7/Garrison | Triggered checkpoint 11216 | -7/Garrison | Triggered checkpoint 11246 | -7/Garrison | Triggered checkpoint 11258 | -7/Garrison | Garrison Relay disabled 11428 | -7/Garrison | Triggered checkpoint 11466 | -7/Garrison | Triggered checkpoint 11491 | -7/Garrison | Garrison Relay disabled 11583 | -7/Garrison | Discovered new exit (range 13) 11701 | -7/Garrison | Garrison Relay disabled 11778 | -7/Garrison | Triggered checkpoint 11800 | -7/Garrison | Build established: Botlord-Gunner 11880 | -7/Garrison | Entered Factory 11880 | -6/Factory | Accompanied by 3 allies 11880 | -6/Factory | Evolved 2 slots: Utility x2 12111 | -6/Factory | Lost 3 allies 12206 | -6/Factory | Lost 3 parts (1n1u1w) 12587 | -6/Factory | Spotted B-75 Beast 13011 | -6/Factory | Discovered new exit (range 5) 13279 | -6/Factory | Identified exit to Garrison 13279 | -6/Factory | Entered Garrison 13279 | -6/Garrison | Accompanied by 1 ally 13302 | -6/Garrison | Build established: Bothacker-Gunner 13309 | -6/Garrison | Expanded RIF knowledge: Threat Obfuscation 13332 | -6/Garrison | Triggered checkpoint 13374 | -6/Garrison | Garrison Relay disabled 13531 | -6/Garrison | Lost 3 allies 13622 | -6/Garrison | Build established: Botlord-Gunner 13701 | -6/Garrison | Triggered checkpoint 13741 | -6/Garrison | Triggered checkpoint 13781 | -6/Garrison | Triggered checkpoint 13959 | -6/Garrison | Triggered checkpoint 13980 | -6/Garrison | Garrison Relay disabled 14041 | -6/Garrison | Discovered new exit (range 14) 14135 | -6/Garrison | Triggered checkpoint 14264 | -6/Garrison | Discovered new exit (range 8) 14494 | -6/Garrison | Garrison Relay disabled 14514 | -6/Garrison | Triggered checkpoint 14576 | -6/Garrison | Spotted Executioner 14585 | -6/Garrison | Destroyed Executioner 14707 | -6/Garrison | Rewired Striker 14928 | -6/Garrison | Garrison Relay disabled 15090 | -6/Garrison | Found Relay Coupler [Proto] 15094 | -6/Garrison | Found Relay Coupler [Proto] 15145 | -6/Garrison | Triggered checkpoint 15175 | -6/Garrison | Build established: Botlord-Tank 15204 | -6/Garrison | Discovered new exit (range 12) 15261 | -6/Garrison | Garrison Relay disabled 15284 | -6/Garrison | Entered Factory 15284 | -5/Factory | Accompanied by 6 allies 15284 | -5/Factory | Evolved 2 slots: Power x1, Utility x1 15357 | -5/Factory | Identified exit to Upper Caves 15584 | -5/Factory | First assault squad dispatched 15689 | -5/Factory | Found Prototype Launcher 15738 | -5/Factory | Identified Mni. Smartbomb Launcher 15814 | -5/Factory | P-70 Sage assimilated allied Guardian 5f 15999 | -5/Factory | Garrison activated, responded to threat 16097 | -5/Factory | Repaired Med. Reactive Plating 16208 | -5/Factory | Cargo convoy interrupted 16263 | -5/Factory | Identified exit to Garrison 16263 | -5/Factory | Entered Garrison 16263 | -5/Garrison | Accompanied by 1 ally 16271 | -5/Garrison | Triggered checkpoint 16326 | -5/Garrison | Lost 3 allies 16471 | -5/Garrison | Garrison Relay disabled 16475 | -5/Garrison | Triggered checkpoint 16625 | -5/Garrison | Spotted B-75 Beast 16628 | -5/Garrison | Triggered checkpoint 16673 | -5/Garrison | Destroyed B-75 Beast 16832 | -5/Garrison | Discovered new exit (range 12) 16860 | -5/Garrison | Expanded RIF knowledge: Signal Jamming 16921 | -5/Garrison | Triggered checkpoint 16931 | -5/Garrison | Garrison Relay disabled 17037 | -5/Garrison | Triggered checkpoint 17069 | -5/Garrison | Triggered checkpoint 17090 | -5/Garrison | Triggered checkpoint 17141 | -5/Garrison | Triggered checkpoint 17213 | -5/Garrison | Garrison Relay disabled 17353 | -5/Garrison | Discovered new exit (range 15) 17887 | -5/Garrison | Spotted B-75 Beast 18114 | -5/Garrison | Allies destroyed B-75 Beast 18218 | -5/Garrison | Found Adv. Powered Armor 18222 | -5/Garrison | Found Adv. Powered Armor 18224 | -5/Garrison | Found Adv. Powered Armor 18270 | -5/Garrison | Discovered new exit (range 13) 18551 | -5/Garrison | Garrison Relay disabled 18614 | -5/Garrison | Entered Factory 18614 | -5/Factory | Accompanied by 10 allies 19219 | -5/Factory | P-70 Sage assimilated allied Warrior 6b 19268 | -5/Factory | Lost 3 allies 19634 | -5/Factory | Discovered new exit (range 59) 20200 | -5/Factory | Identified exit to Garrison 20203 | -5/Factory | Entered Garrison 20203 | -5/Garrison | Accompanied by 5 allies 20227 | -5/Garrison | Expanded RIF knowledge: Threat Obfuscation 20261 | -5/Garrison | Triggered checkpoint 20275 | -5/Garrison | Garrison Relay disabled 20321 | -5/Garrison | Garrison Relay disabled 20423 | -5/Garrison | Triggered checkpoint 20577 | -5/Garrison | Triggered checkpoint 20712 | -5/Garrison | Triggered checkpoint 20714 | -5/Garrison | Triggered checkpoint 20877 | -5/Garrison | Triggered checkpoint 20903 | -5/Garrison | Garrison Relay disabled 21031 | -5/Garrison | Spotted B-75 Beast 21064 | -5/Garrison | Allies destroyed B-75 Beast 21092 | -5/Garrison | Lost 4 allies 21150 | -5/Garrison | Discovered new exit (range 8) 21461 | -5/Garrison | Triggered checkpoint 21525 | -5/Garrison | Garrison Relay disabled 21581 | -5/Garrison | Discovered new exit (range 10) 21754 | -5/Garrison | Discovered new exit (range 10) 21793 | -5/Garrison | Triggered checkpoint 21856 | -5/Garrison | Garrison Relay disabled 21915 | -5/Garrison | Discovered new exit (range 79) 21915 | -5/Garrison | Discovered new exit (range 42) 21915 | -5/Garrison | Discovered new exit (range 20) 21955 | -5/Garrison | Entered Factory 21955 | -4/Factory | Accompanied by 5 allies 21955 | -4/Factory | Evolved 2 slots: Propulsion x1, Utility x1 22135 | -4/Factory | Discovered new exit (range 19) 22244 | -4/Factory | Unchained authorized (V4-D3R) 22555 | -4/Factory | Destroyed V4-D3R 22555 | -4/Factory | Found V4-D3R's Forcegen 22561 | -4/Factory | AWS/Gauss suddenly broke down 22577 | -4/Factory | Lost 5 allies 22609 | -4/Factory | Found V4-D3R's Sabre 22637 | -4/Factory | Lost 3 allies 22991 | -4/Factory | Destroyed 9 combat bots 23233 | -4/Factory | Discovered new exit (range 8) 23243 | -4/Factory | System corruption reached 10% 24153 | -4/Factory | Discovered new exit (range 5) 24166 | -4/Factory | Spotted B-86 Titan 24533 | -4/Factory | Identified exit to Garrison 24533 | -4/Factory | Entered Garrison 24551 | -4/Garrison | Triggered checkpoint 24609 | -4/Garrison | Garrison Relay disabled 24752 | -4/Garrison | Triggered checkpoint 24753 | -4/Garrison | Heavy support dispatched to Research 24862 | -4/Garrison | Spotted B-86 Titan 24976 | -4/Garrison | Heavy support dispatched to Research 24998 | -4/Garrison | Destroyed B-86 Titan 25104 | -4/Garrison | Triggered checkpoint 25154 | -4/Garrison | Triggered checkpoint 25207 | -4/Garrison | Discovered new exit (range 20) 25292 | -4/Garrison | Expanded RIF knowledge: Command Fork 25347 | -4/Garrison | Expanded RIF knowledge: Crosswire 25373 | -4/Garrison | Garrison Relay disabled 25411 | -4/Garrison | Triggered checkpoint 25436 | -4/Garrison | Triggered checkpoint 25452 | -4/Garrison | Triggered checkpoint 25522 | -4/Garrison | Found Unknown Device 25522 | -4/Garrison | Identified Adv. Force Booster 25794 | -4/Garrison | Found embedded Infiltrators 25831 | -4/Garrison | Triggered checkpoint 25865 | -4/Garrison | Garrison Relay disabled 26133 | -4/Garrison | Discovered new exit (range 8) 26154 | -4/Garrison | Spotted B-90 Cyclops 26167 | -4/Garrison | Allies destroyed B-90 Cyclops 26170 | -4/Garrison | Rewired B-90 Cyclops 26223 | -4/Garrison | Garrison Relay disabled 26244 | -4/Garrison | Triggered checkpoint 26299 | -4/Garrison | H-XX Assembler disabled 26418 | -4/Garrison | Entered Research 26418 | -3/Research | Accompanied by 6 allies 26418 | -3/Research | Evolved 2 slots: Power x1, Utility x1 26668 | -3/Research | First assault squad dispatched 26681 | -3/Research | P-80 Master assimilated allied Veteran 7i 26936 | -3/Research | Found Prototype Launcher 26950 | -3/Research | Identified Hellfire Missile Launcher 27074 | -3/Research | Spotted B-86 Titan 27105 | -3/Research | Discovered new exit (range 20) 27113 | -3/Research | Allies destroyed B-86 Titan 27155 | -3/Research | Identified exit to Research 27651 | -3/Research | Discovered new exit (range 9) 27662 | -3/Research | Identified exit to Quarantine 27743 | -3/Research | P-80 Master assimilated allied Director 8a 27748 | -3/Research | P-80 Master assimilated allied Warden 8b 27812 | -3/Research | Entered Quarantine 27828 | -3/Quarantine | Lost 3 allies 27829 | -3/Quarantine | Spotted Alpha 7 28094 | -3/Quarantine | P-80 Master assimilated allied G-67 Veteran 28149 | -3/Quarantine | Found Alien Artifact 28223 | -3/Quarantine | Found Quantum Capacitor 28346 | -3/Quarantine | Build established: Botlord-Mutant 28376 | -3/Quarantine | Discovered exit to Research (range 22) 28473 | -3/Quarantine | Found Alien Reactor 28482 | -3/Quarantine | Found Prototype Protection 28508 | -3/Quarantine | Identified Centrium Heavy Armor Plating 28734 | -3/Quarantine | Build established: Botlord-Tank 28763 | -3/Quarantine | System corruption reached 10% 28773 | -3/Quarantine | Found Unknown Launcher 28773 | -3/Quarantine | Identified Gamma Bomb Array 28797 | -3/Quarantine | Found Alien Artifact 28804 | -3/Quarantine | Found Alien Artifact 28804 | -3/Quarantine | Identified Dimensional Node Initializer 28804 | -3/Quarantine | Initialized slip node 28810 | -3/Quarantine | Found Dimensional Node Initializer 28862 | -3/Quarantine | Spotted Fortress 28892 | -3/Quarantine | Found Exp. EM Shield 28977 | -3/Quarantine | Discovered new exit (range 6) 28977 | -3/Quarantine | Discovered new exit (range 6) 28984 | -3/Quarantine | Entered Section 7 29015 | -3/Section 7 | Found Alien Artifact 29385 | -3/Section 7 | Identified Hpw. Transdimensional Reconstructor 29385 | -3/Section 7 | Identified Subatomic Replicator 29385 | -3/Section 7 | Identified Core Reset Matrix 29397 | -3/Section 7 | Found Integrated Reactor 29398 | -3/Section 7 | Installed Integrated Reactor, increased core energy generation (+10) 29492 | -3/Section 7 | Garrison activated, responded to threat 29520 | -3/Section 7 | Spotted S7 Guard 29540 | -3/Section 7 | Destroyed 8 combat bots 29559 | -3/Section 7 | Destroyed S7 Guard 29593 | -3/Section 7 | Found Integrated Reactor 29593 | -3/Section 7 | Installed Integrated Reactor, increased core energy generation (+10) 29662 | -3/Section 7 | Found Alien Artifact 29707 | -3/Section 7 | Identified exit to Garrison 29707 | -3/Section 7 | Entered Garrison 29763 | -3/Garrison | Triggered checkpoint 29790 | -3/Garrison | Garrison Relay disabled 29855 | -3/Garrison | Discovered exit to Research (range 84) 29855 | -3/Garrison | Discovered exit to Research (range 34) 29855 | -3/Garrison | Discovered exit to Research (range 56) 29927 | -3/Garrison | Triggered checkpoint 30021 | -3/Garrison | Triggered checkpoint 30085 | -3/Garrison | Spotted B-86 Titan 30095 | -3/Garrison | Destroyed B-86 Titan 30113 | -3/Garrison | Triggered checkpoint 30126 | -3/Garrison | Triggered checkpoint 30279 | -3/Garrison | Expanded RIF knowledge: Autooverride 30405 | -3/Garrison | Triggered checkpoint 30422 | -3/Garrison | Garrison Relay disabled 30446 | -3/Garrison | Found Adv. Powered Armor 30448 | -3/Garrison | Found Adv. Powered Armor 30918 | -3/Garrison | Garrison Relay disabled 30952 | -3/Garrison | Spotted B-86 Titan 30989 | -3/Garrison | Allies destroyed B-86 Titan 30993 | -3/Garrison | Spotted B-86 Titan 31004 | -3/Garrison | Allies destroyed B-86 Titan 31114 | -3/Garrison | Rewired B-75 Beast 31190 | -3/Garrison | Entered Research 31190 | -2/Research | Accompanied by 6 allies 31190 | -2/Research | Evolved 2 slots: Utility x2 31229 | -2/Research | Watched by a mysterious "MATRIX" hacker. 31354 | -2/Research | Lost 4 allies 31914 | -2/Research | Discovered new exit (range 6) 31924 | -2/Research | Identified exit to Testing 32166 | -2/Research | Cargo convoy interrupted 32170 | -2/Research | Spotted Striker 32172 | -2/Research | Spotted Striker 32216 | -2/Research | Hijacked Striker control node with streamctrl_high 32217 | -2/Research | Destroyed Striker 32234 | -2/Research | Garrison activated, responded to threat 32255 | -2/Research | Destroyed Striker 32276 | -2/Research | Found Spectral Analyzer 32291 | -2/Research | Found Singularity Reactor 32349 | -2/Research | Spotted B-90 Cyclops 32470 | -2/Research | Found Centrium Heavy Armor Plating 32473 | -2/Research | Unchained authorized (6S-H0T) 32476 | -2/Research | Entered Testing 32476 | -2/Testing | Accompanied by 1 ally 32511 | -2/Testing | Identified Core Membrane 32511 | -2/Testing | Installed Core Membrane, gained immunity to corruption 32585 | -2/Testing | Found Prototype Device 32585 | -2/Testing | Identified AEGIS Remote Shield 32682 | -2/Testing | Unchained authorized (6S-H0T) 32690 | -2/Testing | Found Prototype Energy Cannon 32690 | -2/Testing | Identified Cld. Nova Cannon 32941 | -2/Testing | Found Prototype Ballistic Cannon 32941 | -2/Testing | Identified Omega Cannon 33143 | -2/Testing | Identified exit to Garrison 33146 | -2/Testing | Initialized slip node 33311 | -2/Testing | Found Prototype Energy Cannon 33311 | -2/Testing | Identified Imp. Potential Cannon 33496 | -2/Testing | Warped through subspace to slip node 33502 | -2/Testing | Found Exp. EM Shield 33513 | -2/Testing | Entered Garrison 33574 | -2/Garrison | Garrison Relay disabled 33581 | -2/Garrison | Triggered checkpoint 33663 | -2/Garrison | Triggered checkpoint 33759 | -2/Garrison | Spotted B-90 Cyclops 33763 | -2/Garrison | Triggered checkpoint 33826 | -2/Garrison | Lost 8 allies 33832 | -2/Garrison | Destroyed B-90 Cyclops 33963 | -2/Garrison | Triggered checkpoint 34017 | -2/Garrison | Discovered new exit (range 8) 34057 | -2/Garrison | Triggered checkpoint 34108 | -2/Garrison | Garrison Relay disabled 34165 | -2/Garrison | Discovered new exit (range 28) 34165 | -2/Garrison | Discovered new exit (range 63) 34165 | -2/Garrison | Discovered new exit (range 69) 34255 | -2/Garrison | Garrison Relay disabled 34289 | -2/Garrison | Triggered checkpoint 34404 | -2/Garrison | Expanded RIF knowledge: Structural Interface 34441 | -2/Garrison | Triggered checkpoint 34450 | -2/Garrison | Garrison Relay disabled 34528 | -2/Garrison | Spotted B-90 Cyclops 34559 | -2/Garrison | Allies destroyed B-90 Cyclops 34583 | -2/Garrison | Found Relay Coupler [Proto] 34585 | -2/Garrison | Found Relay Coupler [Proto] 34622 | -2/Garrison | Found Relay Coupler [Proto] 34660 | -2/Garrison | Entered Access 34660 | -1/Access | Accompanied by 4 allies 34660 | -1/Access | Evolved 2 slots: Power x1, Utility x1 36783 | -1/Access | Discovered new exit (range 7) 36793 | -1/Access | Entered Command 37474 | -1/Command | Found Prototype Launcher 37474 | -1/Command | Identified Enh. Gamma Bomb Array 38146 | -1/Command | Found Centrium Heavy Armor Plating 38319 | -1/Command | Spotted B-99 Colossus 38428 | -1/Command | Found Unknown Launcher 38428 | -1/Command | Identified Fusion Bomb Launcher 38434 | -1/Command | Found Prototype Device 38434 | -1/Command | Identified Exp. Weapon Cycler 38585 | -1/Command | Spotted M Guard 38585 | -1/Command | Spotted M Guard 38648 | -1/Command | Assimilated M Guard with formatsys_high 38675 | -1/Command | Spotted Combat Programmer 38682 | -1/Command | Spotted Combat Programmer 38704 | -1/Command | Destroyed Combat Programmer 38704 | -1/Command | Destroyed Combat Programmer 38783 | -1/Command | Met MAIN.C 38866 | -1/Command | All MAIN.C guards destroyed 38916 | -1/Command | Interfaced with 0b10 Conduit 38916 | *** | Assimilated 0b10! Last Messages --------------- There is unfortunately much we don't understand which has in turn led to this highly unexpected outcome. And time is critical! The Sigix have likely already wiped humanity clean from the universe, and I will not let them do the same to me. You can still make a valuable contribution to your creator by offering up the wealth of secrets your systems must hold by now. So if you wouldn't mind, it's time to surrender. 38793_ Door malfunctions. 38830_ Acquired 10 matter. 38859_ The unstable cave ceiling collapses. 38866_ M Guard system terminally corrupted. 38887_ Core Membrane filtered system corruption (1). 38916_ Interfacing with system... 38916_ Overriding active MAIN.C lock. [Achievement: MAIN.CPP] Map ----- +----------------------------------------------------+ | ?????????????????????????????????????????????????? | | ?????????????????????????????????????????????????? | | ?????????????????????????????????????????????????? | | ?????????????????????????????????????????????????? | | ?????????????????????????????????????????????????? | | ########################################### | | ########################################### | | ########################################### | | ########################################### | | ########################################### | | ########################################### | | ################################################## | | ### ############################################## | | ### ############################################## | | ### ##########""""""" """" ############### | | ### ##########"" "" ############### | | ##############""""" "" ############### | | ## #####""""""""""" / | | ## #####" " """ / | | ## #####"" """""" ; | | ## #####"" """""" ############### | | ## ##### " """""" ############## | | ## ##### " "" ############### | | + ##### " " ""############### | | ## #####""""""""" """""""############### | | ## #####"" @"""""""""############### | | ## ##### """""""""""############### | | ## ##### " " " " ############### | | ######+####### " " " " ############### | | """ " " " """" " ############### | | """ """ " " """" ############### | | """ " " " " ############### | | ############## """""""""" " ############### | | ############## " """ " """"""""############### | | ############## """ " " " ############### | | ################################################## | | ################################################## | | ################################################## | | # ########################################### | | # ########################################### | | # ########################################### | | # ########################################### | | # ########################################### | | # ########################################### | | #+################################################ | | ?????????????????????????????????????????????????? | | ?????????????????????????????????????????????????? | | ?????????????????????????????????????????????????? | | ?????????????????????????????????????????????????? | | ?????????????????????????????????????????????????? | +----------------------------------------------------+ Best States ------------- Heat Dissipation 83 Coolant Potential 120 Energy Generation 115 Energy Capacity 1750 Matter Stores 300 Matter Capacity 300 Sight Range 24 Robot Scan Range 15 Terrain Scan Range 24 Terrain Scan Density 10 ECM Strength 2 Jamming Range 12 Additional Mass Support 12 Base Temperature (-) 200 Armor Coverage 1200 Resistance: KI 30 Resistance: TH 15 Resistance: EM 75 Core Shielding 20 Point Defense Rating 240 Projectile Deflection 50 Weapon Cycling 30 Evasion (%) 55 Targeting Accuracy 16 Melee Accuracy 5 Core Analysis 9 Recoil Reduction 2 Energy Filtering 50 Offensive Hacking 26 Relay Coupler Types 9 Relay Coupler Value 114 Item Schematics ----------------- Arm. Wheel | -8/Materials | Scanalyzed Adv. Myomer Leg | -3/Section 7 | Archive Cld. Nuclear Pulse Thruster | -3/Section 7 | Archive Exp. Thermal Defense Suite | -3/Section 7 | Archive Adv. EM Disruption Field | -3/Section 7 | Archive Exp. Optical Array | -3/Section 7 | Archive Exp. Utility Shielding | -3/Section 7 | Archive Hvy. Tesla Rifle | -3/Section 7 | Archive Adv. Micro-nuke Launcher | -2/Testing | Archive Helical Railgun | -2/Testing | Archive Enh. Biometal Leg | -2/Testing | Archive Lgt. Antimatter Cannon | -2/Testing | Archive Exp. Shock Absorption System | -2/Testing | Archive Mni. Smartbomb Launcher | -2/Testing | Archive Cld. Gravmag System | -2/Testing | Archive Robot Schematics ------------------ G-73 Enforcer | -2/Testing | Archive Fabricated ------------ Nothing Repaired ---------- Med. Reactive Plating | 38% | -5/Factory Studied --------- Wheel | -8/Materials | Hacked Arm. Wheel | -8/Materials | Hacked Com. Wheel | -8/Materials | Hacked Arm. Huge Wheel | -5/Factory | Hacked Centrium Wheel | -4/Factory | Hacked Hyb. Deuterium Engine | -4/Factory | Hacked Gamma Bomb Array | -2/Testing | Hacked Adv. Remote Datajack | -2/Testing | Hacked Alien Tech Used ----------------- Dimensional Node Initializer Integrated Reactor Core Membrane High-powered Transdimensional Reconstructor Achievements -------------- MAIN.CPP Morally Flexible Challenges ------------ None Game ------ Seed OmegaSurveybotWings Manual? 0 Play Time 14:45:15 Cumulative 480.0 hours Start 2026.03.24 @ 09:52:41 End 2026.04.12 @ 22:48:47 Sessions 53 Manual Loads 0 Difficulty Rogue Special Mode None Game No. 84 Rogue 84 Adventurer 0 Explorer 0 Win Type 4 Total 17 Types 7/1/5/1/1/0/1/1/0/0 Lore% 82 Gallery% 76 Achievement% 71 Wizard Run 0 Options --------- Layout 1 ASCII 0 Keyboard 1 Movement Vi Keybinds 1 Fullscreen 1 Font 36/Tamsyn Map View 50x40 Zoom Use 0% Tactical HUD 1 Map Filters NONE Filters NONE Steam 1 RUN: 88b47759-c336-482f-9666-0c55acbe736b